Workbook

Sheet Main Data Entry
A1: Unit Information & Characteristics | Z1: 11111109
C3: Contributor Name:
C4: Contributor Phone Number:
C5: Contributor Email:
C6: Generator Operator:
C7: EIA 860 Plant Name (US Only):
C8: EIA 860 Plant Code (US Only):
C9: EIA 860 Generator ID (US Only):
C10: GADS Generator Unit ID:
C11: Planning Case Bus Number:
C12: Interconnection: | D12: Eastern
C13: Balancing Authority:
C14: Generator Type:
C15: Generator Machine Base (MBASE)(MVA):
C16: Inertia Constant (H):
C17: Unit Droop Setting @ Time of Event: | E17: %
C18: Unit Deadband Setting @ Time of Event: | E18: Hz
C19: Unit Operating Mode @ Time of Event: | F19: Hz Span | G19: =D22*D28 -> 3 | H19: Hz
C20: Maximum Operating Level (Pmax)(HSL) @ Time of Event: | D20: 0 | E20: MW | F20: Hz Span (dB) | G20: =G19-D23 -> 2.964 | H20: Hz
C21: Minimum Operating Level (Pmin)(LSL) @ Time of Event: | D21: 0 | E21: MW | F21: Turbine NDC | G21: =D20 -> 0 | H21: MW
C22: Expected Droop Setting: | D22: 0.05
C23: Expected Deadband Setting: | D23: 0.036 | E23: Hz
A25: System & Event Characteristics
C27: Time of Frequency Event (UTC): | D27: 2019-07-12T00:45:14 | E27: Date | F27: Time
C28: Grid Nominal Frequency: | D28: 60 | E28: =D27 -> 2019-07-12T00:45:14 | F28: =D27 -> 43658.03141
A30: Report Options
C31: Data Source: | D31: Historian
C32: Time Zone of Historian Data: | D32: UTC
A34: Manual Data Entry
D36: Pre-Perturbation Average Frequency [T(-16) to T(-2)] | F36: Hz
D37: Post-Perturbation Average Frequency [T(+20 to T(+52)] | F37: Hz
D38: Post-Perturbation Frequency [(T+46)] | F38: Hz
D39: Pre-Perturbation Average MW [T(-2 ) to T(-16)] | F39: MW
D40: Post-Perturbation Average MW [T(+20 to T(+52)] | F40: MW
D41: Maximum MW Response [T(+46) to T(+60)] | F41: MW
D42: MW Output [T(-4)] | F42: MW
D43: MW Output [T(-60)] | F43: MW

Sheet Results
A6: Results
D8: P.U. Primary Frequency Response Performance (PUPFR): | E8: Offline
D9: P.U. Sustained Primary Frequency Response Performance (PUSPFR): | E9: Offline
D10: Overall Unit Performance: | E10: Offline
D11: Minimum Acceptable Score (PU): | E11: 0.75
A12: For Generators between Pmin and % of Pmax and eligible to provide PFR; -Generators who provide response in the proper direction and sustained it for the lessor of the event duration or for 1 minute: J -Generators whose MW output remained unchanged or was in the wrong direction: L
A16: Reason for Performance (optional)
B18: comments

Sheet Historian Data
D1: Start (2mins before T(0)) | E1: ='Main Data Entry'!$D$27-(2/(24*60)) -> 2019-07-12T00:43:14
D2: Offset | E2: =myexacttimematch(E1,$A$8:$A$20000,TRUE) -> -1
A3: -Data should be pulled for NO LESS THAN 1 minute before t(0) and NO LESS THAN 2 minutes after t(0).
A4: -Data may be pulled at any sample interval from 1s to 8s, as long as it is in the proper format.
A5: -Note that the resulting Primary Frequency Response (PFR) calculations are a product of the Data provided. Faster sampled data will provide a result most representative of the units response.
A6: -Any data beyond Row 4000 of this sheet will not be sampled or used in the calculation.
A7: Timestamp | B7: Unit Frequency | C7: MW Output

Sheet Calculations
A1: Offset (s) | B1: =Chart!$H$34 -> 0 | F1: Date (UTC): | P1: ='Main Data Entry'!D27 -> 2019-07-12T00:45:14
A2: *Offset should not be more than +/-38s | F2: Time of T(0) (UTC) | P2: ='Main Data Entry'!D27 -> 43658.03141 | AH2: min frequency | AI2: =IF(MIN(AC:AC)<59.975,FLOOR(MIN(AC:AC)-0.025,0.025),59.975) -> 59.9
AH3: max frequency | AI3: =IF(MAX(AC:AC)>60.025,CEILING(MAX(AC:AC)+0.025,0.025),60.025) -> 60.025
A4: Calculated using Generator provided Historian Data | S4: Calculated using Generator provided manually calculated data | AB4: Raw Input Data | AE4: Interpolated Values | AH4: frequency major unit | AI4: 0.025
F5: Pre-Perturbation Average Frequency [T(-16) to T(-2)] | P5: =$E$105 -> 59.98549143 | T5: Pre-Perturbation Average Frequency [T(-16) to T(-2)] | U5: ='Main Data Entry'!E36 -> 0 | AH5: frequency units | AI5: =(AI3-AI2)/AI4 -> 5
F6: Post-Perturbation Average Frequency [T(+20 to T(+52)] | P6: =$E$141 -> 59.95075746 | T6: Post-Perturbation Average Frequency [T(+20 to T(+52)] | U6: ='Main Data Entry'!E37 -> 0 | AB6: Timestamp | AC6: Raw Frequency (Hz) | AD6: Raw Generator Output (MW) | AE6: Raw Frequency (Hz) | AF6: Raw Generator Output (MW) | AH6: min response | AI6: =CEILING(MIN(AD:AD)-10,10) -> 440
F7: Pre to Post Perturbation Delta Frequency Actual | P7: =P6-P5 -> -0.03473397457 | T7: Pre to Post Perturbation Delta Frequency Actual | U7: =U6-U5 -> 0 | AH7: max response | AI7: =CEILING(MAX(AD:AD)+10,10) -> 470
F8: Post-Perturbation Frequency (T+46) | P8: =$C$167 -> 59.95679855 | T8: Post-Perturbation Frequency (T+46) | U8: ='Main Data Entry'!E38 -> 0 | AH8: response major unit | AI8: =(AI7-AI6)/AI5 -> 6
F9: Pre to Post-Event Delta Frequency Actual (T+46) | P9: =P8-P5 -> -0.02869288127 | T9: Pre to Post-Event Delta Frequency Actual (T+46) | U9: =U8-U5 -> 0
F10: High or Low Frequency Event? | P10: =IF(P6>'Main Data Entry'!D28,"High",IF(P6<'Main Data Entry'!D28,"Low","Does Not Compute")) -> Low | T10: High or Low Frequency Event? | U10: =IF(U6>'Main Data Entry'!$D$28,"High",IF(U6<'Main Data Entry'!$D$28,"Low","Does Not Compute")) -> Low
AB11: =AB12-TIME(0,0,1) -> 43658.03014 | AE11: =$AC$11 -> 0 | AF11: =$AD$11 -> 0
F12: Pre-Perturbation Average MW [T(-2 ) to T(-16)] | P12: =$F$105 -> 448.1994751 | Q12: Headroom Available: | R12: ='Main Data Entry'!G21-Calculations!P12 -> -448.1994751 | T12: Pre-Perturbation Average MW [T(-2 ) to T(-16)] | U12: ='Main Data Entry'!E39 -> 0 | V12: Headroom Available: | W12: ='Main Data Entry'!$G$21-Calculations!$U$12 -> 0 | AB12: 43658.03015 | AC12: 60.00847626 | AD12: 448.6597595 | AE12: =IF($AC12="",$AE11,IF($AC12<>$AE11,$AC12,$AE11)) -> 60.00847626 | AF12: =IF($AD12="",$AF11,IF($AD12<>$AF11,$AD12,$AF11)) -> 448.6597595
F13: Post-Perturbation Average MW [T(+20 to T(+52)] | P13: =$F$141 -> 454.299457 | Q13: Footroom Available: | R13: =P12-'Main Data Entry'!D21 -> 448.1994751 | T13: Post-Perturbation Average MW [T(+20 to T(+52)] | U13: ='Main Data Entry'!E40 -> 0 | V13: Footroom Available: | W13: =U12-'Main Data Entry'!$D$21 -> 0 | AB13: 43658.03016 | AE13: 60.00847626 | AF13: 448.6597595
F14: Pre to Post-Perturbation Delta MW Actual | P14: =P13-P12 -> 6.099981874 | Q14: Adequate Margin? | R14: =IF(P10="Low",IF(P12>=MIN(('Main Data Entry'!G21*0.98),'Main Data Entry'!G21-5),"No","Yes"),IF(P10="High",IF(Calculations!P12<=MAX(('Main Data Entry'!D21+('Main Data Entry'!G21*0.2)),('Main Data Entry'!D21+5)),"No","Yes"))) -> No | T14: Pre to Post-Perturbation Delta MW Actual | U14: =U13-U12 -> 0 | V14: Adequate Margin? | W14: =IF(U10="Low",IF(U12>=MIN(('Main Data Entry'!$G$21*0.98),'Main Data Entry'!$G$21-5),"No","Yes"),IF(U10="High",IF(Calculations!U12<=MAX(('Main Data Entry'!$D$21+('Main Data Entry'!$G$21*0.2)),('Main Data Entry'!$D$21+5)),"No","Yes"))) -> No | AB14: 43658.03017 | AC14: 60.00827408 | AD14: 448.6790771 | AE14: 60.00827408 | AF14: 448.6790771
AB15: 43658.03019 | AE15: 60.00827408 | AF15: 448.6790771
F16: RampMagnitude_initial | P16: =($D$117-$D$61)*0.59 -> -0.2217181396 | T16: RampMagnitude_initial | U16: =('Main Data Entry'!$E$42-'Main Data Entry'!$E$43)*0.59 -> 0 | AB16: 43658.0302 | AC16: 60.00806808 | AD16: 448.6983948 | AE16: 60.00806808 | AF16: 448.6983948
F17: Actual Primary Frequency Response (adjusted) | P17: =P14-P16 -> 6.321700014 | T17: Actual Primary Frequency Response (adjusted) | U17: =U14-U16 -> 0 | AB17: 43658.03021 | AE17: 60.00806808 | AF17: 448.6983948
F18: Expected Primary Frequency Response (Pre) | P18: =$R$105 -> 0 | T18: Expected Primary Frequency Response (Pre) | U18: =IF($U$5>'Main Data Entry'!$D$28+'Main Data Entry'!$D$23,((Calculations!$U$5-'Main Data Entry'!$D$28-'Main Data Entry'!$D$23)/('Main Data Entry'!$D$28*'Main Data Entry'!$D$22-'Main Data Entry'!$D$23))*-1*'Main Data Entry'!$D$20,IF(Calculations!$U$5<'Main Data Entry'!$D$28-'Main Data Entry'!$D$23,((Calculations!$U$5-'Main Data Entry'!$D$28+'Main Data Entry'!$D$23)/('Main Data Entry'!$D$28*'Main Data Entry'!$D$22-'Main Data Entry'!$D$23))*-1*'Main Data Entry'!$D$20,0)) -> 0 | AB18: 43658.03022 | AC18: 60.00786591 | AD18: 448.7176819 | AE18: 60.00786591 | AF18: 448.7176819
F19: Expected Primary Frequency Response (Post) | P19: =$R$141 -> 0 | T19: Expected Primary Frequency Response (Post) | U19: =IF($U$6>'Main Data Entry'!$D$28+'Main Data Entry'!$D$23,((Calculations!$U$6-'Main Data Entry'!$D$28-'Main Data Entry'!$D$23)/('Main Data Entry'!$D$28*'Main Data Entry'!$D$22-'Main Data Entry'!$D$23))*-1*'Main Data Entry'!$D$20,IF(Calculations!$U$6<'Main Data Entry'!$D$28-'Main Data Entry'!$D$23,((Calculations!$U$6-'Main Data Entry'!$D$28+'Main Data Entry'!$D$23)/('Main Data Entry'!$D$28*'Main Data Entry'!$D$22-'Main Data Entry'!$D$23))*-1*'Main Data Entry'!$D$20,0)) -> 0 | AB19: 43658.03023 | AE19: 60.00786591 | AF19: 448.7176819
F20: Expected Primary Frequency Response (Ideal) | P20: =$P$19-$P$18 -> 0 | T20: Expected Primary Frequency Response (Ideal) | U20: =U19-U18 -> 0 | AB20: 43658.03024 | AC20: 60.00742722 | AD20: 448.7369995 | AE20: 60.00742722 | AF20: 448.7369995
F21: Expected Primary Frequency Response (Final) | P21: =$P$20 -> 0 | T21: Expected Primary Frequency Response (Final) | U21: =U20 -> 0 | AB21: 43658.03025 | AE21: 60.00742722 | AF21: 448.7369995
AB22: 43658.03027 | AC22: 60.00698853 | AD22: 448.7562866 | AE22: 60.00698853 | AF22: 448.7562866
F23: PUPFR Performance | P23: =IFERROR($P$17/$P$21,0) -> 0 | Q23: Final PUPFR Performance | R23: =IFERROR(IF($R$14="Yes",P23,"No Evaluation"),0) -> No Evaluation | T23: PUPFR Performance | U23: =IFERROR(U17/U21,0) -> 0 | V23: Final PUPFR Performance | W23: =IFERROR(IF($W$14="Yes",U23,"No Evaluation"),0) -> No Evaluation | AB23: 43658.03028 | AE23: 60.00698853 | AF23: 448.7562866
AB24: 43658.03029 | AC24: 60.00654984 | AD24: 448.7756042 | AE24: 60.00654984 | AF24: 448.7756042
F25: Maximum MW Response [T(+46) to T(+60)] | P25: =MAX($D$167:$D$181) -> 454.0290222 | T25: Maximum MW Response [T(+46) to T(+60)] | U25: ='Main Data Entry'!$E$41 -> 0 | AB25: 43658.0303 | AE25: 60.00654984 | AF25: 448.7756042
F26: Actual Sustained Primary Frequency Response | P26: =P25-P12 -> 5.829547119 | T26: Actual Sustained Primary Frequency Response | U26: =U25-U12 -> 0 | AB26: 43658.03031 | AC26: 60.00273514 | AD26: 448.3638 | AE26: 60.00273514 | AF26: 448.3638
F27: RampMagnitude_sustained | P27: =($D$117-$D$61)*0.821 -> -0.3085264282 | T27: RampMagnitude_sustained | U27: =('Main Data Entry'!$E$42-'Main Data Entry'!$E$43)*0.821 -> 0 | AB27: 43658.03032 | AE27: 60.00273514 | AF27: 448.3638
F28: Actual Sustained Primary Frequency Response (adjusted) | P28: =$P$26-$P$27 -> 6.138073547 | T28: Actual Sustained Primary Frequency Response (adjusted) | U28: =U26-U27 -> 0 | AB28: 43658.03034 | AC28: 59.99892044 | AD28: 448.3148193 | AE28: 59.99892044 | AF28: 448.3148193
F29: Expected Sustained Primary Frequency Response [T(+46)] | P29: =$Q$167 -> 0 | T29: Expected Sustained Primary Frequency Response [T(+46)] | U29: =V108 -> 0 | AB29: 43658.03035 | AE29: 59.99892044 | AF29: 448.3148193
F30: Expected Sustained Primary Frequency Response (Ideal) | P30: =$P$29-$P$18 -> 0 | T30: Expected Sustained Primary Frequency Response (Ideal) | U30: =IF('Main Data Entry'!$E$38<'Main Data Entry'!$D$28-'Main Data Entry'!$D$23,(('Main Data Entry'!$E$38-'Main Data Entry'!$D$28+'Main Data Entry'!$D$23)/('Main Data Entry'!$D$28*'Main Data Entry'!$D$22-'Main Data Entry'!$D$23))*(-1)*'Main Data Entry'!$G$21,IF('Main Data Entry'!$E$38>'Main Data Entry'!$D$28+'Main Data Entry'!$D$23,(('Main Data Entry'!$E$38-'Main Data Entry'!$D$28-'Main Data Entry'!$D$23)/('Main Data Entry'!$D$28*'Main Data Entry'!$D$22-'Main Data Entry'!$D$23))*(-1)*'Main Data Entry'!$G$21,0)) -> 0 | AB30: 43658.03036 | AC30: 59.99510574 | AD30: 448.2658691 | AE30: 59.99510574 | AF30: 448.2658691
F31: Expected Sustained Primary Frequency Response (Final) | P31: =$P$30 -> 0 | T31: Expected Sustained Primary Frequency Response (Final) | U31: =U30 -> 0 | AB31: 43658.03037 | AE31: 59.99510574 | AF31: 448.2658691
AB32: 43658.03038 | AC32: 59.99510574 | AD32: 448.2169189 | AE32: 59.99510574 | AF32: 448.2169189
F33: PUSPFR Performance | P33: =IFERROR($P$28/$P$31,0) -> 0 | Q33: Final PUSPFR Performance | R33: =IFERROR(IF($R$14="Yes",P33,"No Evaluation"),0) -> No Evaluation | T33: PUSPFR Performance | U33: =IFERROR(U28/U31,0) -> 0 | V33: Final PUSPFR Performance | W33: =IFERROR(IF($W$14="Yes",U33,"No Evaluation"),0) -> No Evaluation | AB33: 43658.03039 | AE33: 59.99510574 | AF33: 448.2169189
AB34: 43658.03041 | AC34: 59.99510574 | AD34: 448.1679382 | AE34: 59.99510574 | AF34: 448.1679382
AB35: 43658.03042 | AE35: 59.99510574 | AF35: 448.1679382
AB36: 43658.03043 | AC36: 59.98132706 | AD36: 447.9286804 | AE36: 59.98132706 | AF36: 447.9286804
AB37: 43658.03044 | AE37: 59.98132706 | AF37: 447.9286804
AB38: =AB39-TIME(0,0,1) -> 43658.03045 | AC38: 59.9773407 | AD38: 448.1600037 | AE38: 59.9773407 | AF38: 448.1600037
B39: Pre-Event Period | G39: Chart Values | AB39: 43658.03046 | AE39: 59.9773407 | AF39: 448.1600037
B40: T(0) | AB40: 43658.03047 | AC40: 59.97338486 | AD40: 448.6616516 | AE40: 59.97338486 | AF40: 448.6616516
B41: Post-Event Period | AB41: 43658.03049 | AE41: 59.97338486 | AF41: 448.6616516
B42: Input Data | C42: Interpolated | E42: *Note that all times are in UTC time | H42: Pre and Post-Perturbation Average Values | L42: PFR Values | AB42: 43658.0305 | AC42: 59.9733696 | AD42: 448.6634216 | AE42: 59.9733696 | AF42: 448.6634216
E43: *Note that the first few rows in this might be blank depending on data provided. | AB43: 43658.03051 | AE43: 59.9733696 | AF43: 448.6634216
A44: T | B44: Offset Timestamp | C44: Offset Frequency (Hz) | D44: Offset Generator Output (MW) | E44: Average Frequency (Hz) | F44: Average Output (MW) | G44: Proxy | H44: Pre-Perturbation Frequency (Hz) | I44: Post-Perturbation Frequency (Hz) | J44: Pre-Perturbation Output (MW) | K44: Post-Perturbation Output (MW) | L44: Measured Initial Response (MW) | M44: Expected Initial PFR (MW) | N44: Measured Sustained Response (MW) | O44: Expected Sustained PFR (MW) | P44: HSL (MW) | Q44: Ideal Expected Primary Frequency Response (EPFR) (MW) | R44: Average EPFR (MW) | S44: 36 mHz Deadband | AB44: 43658.03052 | AC44: 59.9733696 | AD44: 448.6634216 | AE44: 59.9733696 | AF44: 448.6634216
AB45: 43658.03053 | AE45: 59.9733696 | AF45: 448.6634216
AB46: 43658.03054 | AC46: 59.9733696 | AD46: 448.663147 | AE46: 59.9733696 | AF46: 448.663147
AB47: 43658.03056 | AE47: 59.9733696 | AF47: 448.663147
AB48: =AB49-TIME(0,0,1) -> 43658.03057 | AC48: 59.97173309 | AD48: 448.1260376 | AE48: 59.97173309 | AF48: 448.1260376
A49: T-72s | B49: =B50-TIME(0,0,1) -> 43658.03058 | C49: =OFFSET($AE49,-$B$1,0) -> 59.97173309 | D49: =OFFSET($AF49,-$B$1,0) -> 448.1260376 | P49: ='Main Data Entry'!$G$21 -> 0 | Q49: =IF($C49>(60+'Main Data Entry'!$D$23),(($C49-60-'Main Data Entry'!$D$23)/(60*'Main Data Entry'!$D$22-'Main Data Entry'!$D$23))*(-1)*'Main Data Entry'!$G$21,IF($C49<(60-'Main Data Entry'!$D$23),(($C49-60+'Main Data Entry'!$D$23)/(60*'Main Data Entry'!$D$22-'Main Data Entry'!$D$23))*(-1)*'Main Data Entry'!$G$21,0)) -> 0 | S49: =Grid_Nominal_Frequency-Expected_Deadband_Setting -> 59.964 | AB49: =AB50-TIME(0,0,1) -> 43658.03058 | AE49: 59.97173309 | AF49: 448.1260376
A50: T-71s | B50: =B51-TIME(0,0,1) -> 43658.03059 | C50: 59.97172928 | D50: 448.1246948 | P50: ='Main Data Entry'!$G$21 -> 0 | Q50: =IF($C50>(60+'Main Data Entry'!$D$23),(($C50-60-'Main Data Entry'!$D$23)/(60*'Main Data Entry'!$D$22-'Main Data Entry'!$D$23))*(-1)*'Main Data Entry'!$G$21,IF($C50<(60-'Main Data Entry'!$D$23),(($C50-60+'Main Data Entry'!$D$23)/(60*'Main Data Entry'!$D$22-'Main Data Entry'!$D$23))*(-1)*'Main Data Entry'!$G$21,0)) -> 0 | S50: 59.964 | AB50: 43658.03059 | AC50: 59.97172928 | AD50: 448.1246948 | AE50: 59.97172928 | AF50: 448.1246948
A51: T-70s | B51: 43658.0306 | C51: 59.97172928 | D51: 448.1246948 | P51: ='Main Data Entry'!$G$21 -> 0 | Q51: =IF($C51>(60+'Main Data Entry'!$D$23),(($C51-60-'Main Data Entry'!$D$23)/(60*'Main Data Entry'!$D$22-'Main Data Entry'!$D$23))*(-1)*'Main Data Entry'!$G$21,IF($C51<(60-'Main Data Entry'!$D$23),(($C51-60+'Main Data Entry'!$D$23)/(60*'Main Data Entry'!$D$22-'Main Data Entry'!$D$23))*(-1)*'Main Data Entry'!$G$21,0)) -> 0 | S51: 59.964 | AB51: 43658.0306 | AE51: 59.97172928 | AF51: 448.1246948
A52: T-69s | B52: 43658.03061 | C52: 59.97172928 | D52: 448.1246948 | P52: ='Main Data Entry'!$G$21 -> 0 | Q52: =IF($C52>(60+'Main Data Entry'!$D$23),(($C52-60-'Main Data Entry'!$D$23)/(60*'Main Data Entry'!$D$22-'Main Data Entry'!$D$23))*(-1)*'Main Data Entry'!$G$21,IF($C52<(60-'Main Data Entry'!$D$23),(($C52-60+'Main Data Entry'!$D$23)/(60*'Main Data Entry'!$D$22-'Main Data Entry'!$D$23))*(-1)*'Main Data Entry'!$G$21,0)) -> 0 | S52: 59.964 | AB52: 43658.03061 | AC52: 59.97172928 | AD52: 448.1246948 | AE52: 59.97172928 | AF52: 448.1246948
A53: T-68s | B53: 43658.03062 | C53: 59.97172928 | D53: 448.1246948 | P53: ='Main Data Entry'!$G$21 -> 0 | Q53: =IF($C53>(60+'Main Data Entry'!$D$23),(($C53-60-'Main Data Entry'!$D$23)/(60*'Main Data Entry'!$D$22-'Main Data Entry'!$D$23))*(-1)*'Main Data Entry'!$G$21,IF($C53<(60-'Main Data Entry'!$D$23),(($C53-60+'Main Data Entry'!$D$23)/(60*'Main Data Entry'!$D$22-'Main Data Entry'!$D$23))*(-1)*'Main Data Entry'!$G$21,0)) -> 0 | S53: 59.964 | AB53: 43658.03062 | AE53: 59.97172928 | AF53: 448.1246948
A54: T-67s | B54: 43658.03064 | C54: 59.97172928 | D54: 448.1246948 | P54: ='Main Data Entry'!$G$21 -> 0 | Q54: =IF($C54>(60+'Main Data Entry'!$D$23),(($C54-60-'Main Data Entry'!$D$23)/(60*'Main Data Entry'!$D$22-'Main Data Entry'!$D$23))*(-1)*'Main Data Entry'!$G$21,IF($C54<(60-'Main Data Entry'!$D$23),(($C54-60+'Main Data Entry'!$D$23)/(60*'Main Data Entry'!$D$22-'Main Data Entry'!$D$23))*(-1)*'Main Data Entry'!$G$21,0)) -> 0 | S54: 59.964 | AB54: 43658.03064 | AC54: 59.97172928 | AD54: 448.1246948 | AE54: 59.97172928 | AF54: 448.1246948
A55: T-66s | B55: 43658.03065 | C55: 59.97172928 | D55: 448.1246948 | P55: ='Main Data Entry'!$G$21 -> 0 | Q55: =IF($C55>(60+'Main Data Entry'!$D$23),(($C55-60-'Main Data Entry'!$D$23)/(60*'Main Data Entry'!$D$22-'Main Data Entry'!$D$23))*(-1)*'Main Data Entry'!$G$21,IF($C55<(60-'Main Data Entry'!$D$23),(($C55-60+'Main Data Entry'!$D$23)/(60*'Main Data Entry'!$D$22-'Main Data Entry'!$D$23))*(-1)*'Main Data Entry'!$G$21,0)) -> 0 | S55: 59.964 | AB55: 43658.03065 | AE55: 59.97172928 | AF55: 448.1246948
A56: T-65s | B56: 43658.03066 | C56: 59.96986389 | D56: 448.4570312 | P56: ='Main Data Entry'!$G$21 -> 0 | Q56: =IF($C56>(60+'Main Data Entry'!$D$23),(($C56-60-'Main Data Entry'!$D$23)/(60*'Main Data Entry'!$D$22-'Main Data Entry'!$D$23))*(-1)*'Main Data Entry'!$G$21,IF($C56<(60-'Main Data Entry'!$D$23),(($C56-60+'Main Data Entry'!$D$23)/(60*'Main Data Entry'!$D$22-'Main Data Entry'!$D$23))*(-1)*'Main Data Entry'!$G$21,0)) -> 0 | S56: 59.964 | AB56: 43658.03066 | AC56: 59.96986389 | AD56: 448.4570312 | AE56: 59.96986389 | AF56: 448.4570312
A57: T-64s | B57: 43658.03067 | C57: 59.96986389 | D57: 448.4570312 | P57: ='Main Data Entry'!$G$21 -> 0 | Q57: =IF($C57>(60+'Main Data Entry'!$D$23),(($C57-60-'Main Data Entry'!$D$23)/(60*'Main Data Entry'!$D$22-'Main Data Entry'!$D$23))*(-1)*'Main Data Entry'!$G$21,IF($C57<(60-'Main Data Entry'!$D$23),(($C57-60+'Main Data Entry'!$D$23)/(60*'Main Data Entry'!$D$22-'Main Data Entry'!$D$23))*(-1)*'Main Data Entry'!$G$21,0)) -> 0 | S57: 59.964 | AB57: 43658.03067 | AE57: 59.96986389 | AF57: 448.4570312
A58: T-63s | B58: 43658.03068 | C58: 59.97089767 | D58: 447.9987793 | P58: ='Main Data Entry'!$G$21 -> 0 | Q58: =IF($C58>(60+'Main Data Entry'!$D$23),(($C58-60-'Main Data Entry'!$D$23)/(60*'Main Data Entry'!$D$22-'Main Data Entry'!$D$23))*(-1)*'Main Data Entry'!$G$21,IF($C58<(60-'Main Data Entry'!$D$23),(($C58-60+'Main Data Entry'!$D$23)/(60*'Main Data Entry'!$D$22-'Main Data Entry'!$D$23))*(-1)*'Main Data Entry'!$G$21,0)) -> 0 | S58: 59.964 | AB58: 43658.03068 | AC58: 59.97089767 | AD58: 447.9987793 | AE58: 59.97089767 | AF58: 447.9987793
A59: T-62s | B59: 43658.03069 | C59: 59.97089767 | D59: 447.9987793 | P59: ='Main Data Entry'!$G$21 -> 0 | Q59: =IF($C59>(60+'Main Data Entry'!$D$23),(($C59-60-'Main Data Entry'!$D$23)/(60*'Main Data Entry'!$D$22-'Main Data Entry'!$D$23))*(-1)*'Main Data Entry'!$G$21,IF($C59<(60-'Main Data Entry'!$D$23),(($C59-60+'Main Data Entry'!$D$23)/(60*'Main Data Entry'!$D$22-'Main Data Entry'!$D$23))*(-1)*'Main Data Entry'!$G$21,0)) -> 0 | S59: 59.964 | AB59: 43658.03069 | AE59: 59.97089767 | AF59: 447.9987793
A60: T-61s | B60: 43658.03071 | C60: 59.97052002 | D60: 448.6846313 | P60: ='Main Data Entry'!$G$21 -> 0 | Q60: =IF($C60>(60+'Main Data Entry'!$D$23),(($C60-60-'Main Data Entry'!$D$23)/(60*'Main Data Entry'!$D$22-'Main Data Entry'!$D$23))*(-1)*'Main Data Entry'!$G$21,IF($C60<(60-'Main Data Entry'!$D$23),(($C60-60+'Main Data Entry'!$D$23)/(60*'Main Data Entry'!$D$22-'Main Data Entry'!$D$23))*(-1)*'Main Data Entry'!$G$21,0)) -> 0 | S60: 59.964 | AB60: 43658.03071 | AC60: 59.97052002 | AD60: 448.6846313 | AE60: 59.97052002 | AF60: 448.6846313
A61: T-60s | B61: 43658.03072 | C61: 59.97052002 | D61: 448.6846313 | P61: ='Main Data Entry'!$G$21 -> 0 | Q61: =IF($C61>(60+'Main Data Entry'!$D$23),(($C61-60-'Main Data Entry'!$D$23)/(60*'Main Data Entry'!$D$22-'Main Data Entry'!$D$23))*(-1)*'Main Data Entry'!$G$21,IF($C61<(60-'Main Data Entry'!$D$23),(($C61-60+'Main Data Entry'!$D$23)/(60*'Main Data Entry'!$D$22-'Main Data Entry'!$D$23))*(-1)*'Main Data Entry'!$G$21,0)) -> 0 | S61: 59.964 | AB61: 43658.03072 | AE61: 59.97052002 | AF61: 448.6846313
A62: T-59s | B62: 43658.03073 | C62: 59.97013474 | D62: 448.6867065 | P62: ='Main Data Entry'!$G$21 -> 0 | Q62: =IF($C62>(60+'Main Data Entry'!$D$23),(($C62-60-'Main Data Entry'!$D$23)/(60*'Main Data Entry'!$D$22-'Main Data Entry'!$D$23))*(-1)*'Main Data Entry'!$G$21,IF($C62<(60-'Main Data Entry'!$D$23),(($C62-60+'Main Data Entry'!$D$23)/(60*'Main Data Entry'!$D$22-'Main Data Entry'!$D$23))*(-1)*'Main Data Entry'!$G$21,0)) -> 0 | S62: 59.964 | AB62: 43658.03073 | AC62: 59.97013474 | AD62: 448.6867065 | AE62: 59.97013474 | AF62: 448.6867065
A63: T-58s | B63: 43658.03074 | C63: 59.97013474 | D63: 448.6867065 | P63: ='Main Data Entry'!$G$21 -> 0 | Q63: =IF($C63>(60+'Main Data Entry'!$D$23),(($C63-60-'Main Data Entry'!$D$23)/(60*'Main Data Entry'!$D$22-'Main Data Entry'!$D$23))*(-1)*'Main Data Entry'!$G$21,IF($C63<(60-'Main Data Entry'!$D$23),(($C63-60+'Main Data Entry'!$D$23)/(60*'Main Data Entry'!$D$22-'Main Data Entry'!$D$23))*(-1)*'Main Data Entry'!$G$21,0)) -> 0 | S63: 59.964 | AB63: 43658.03074 | AE63: 59.97013474 | AF63: 448.6867065
A64: T-57s | B64: 43658.03075 | C64: 59.96975327 | D64: 448.6867065 | P64: ='Main Data Entry'!$G$21 -> 0 | Q64: =IF($C64>(60+'Main Data Entry'!$D$23),(($C64-60-'Main Data Entry'!$D$23)/(60*'Main Data Entry'!$D$22-'Main Data Entry'!$D$23))*(-1)*'Main Data Entry'!$G$21,IF($C64<(60-'Main Data Entry'!$D$23),(($C64-60+'Main Data Entry'!$D$23)/(60*'Main Data Entry'!$D$22-'Main Data Entry'!$D$23))*(-1)*'Main Data Entry'!$G$21,0)) -> 0 | S64: 59.964 | AB64: 43658.03075 | AC64: 59.96975327 | AD64: 448.6867065 | AE64: 59.96975327 | AF64: 448.6867065
A65: T-56s | B65: 43658.03076 | C65: 59.96975327 | D65: 448.6867065 | P65: ='Main Data Entry'!$G$21 -> 0 | Q65: =IF($C65>(60+'Main Data Entry'!$D$23),(($C65-60-'Main Data Entry'!$D$23)/(60*'Main Data Entry'!$D$22-'Main Data Entry'!$D$23))*(-1)*'Main Data Entry'!$G$21,IF($C65<(60-'Main Data Entry'!$D$23),(($C65-60+'Main Data Entry'!$D$23)/(60*'Main Data Entry'!$D$22-'Main Data Entry'!$D$23))*(-1)*'Main Data Entry'!$G$21,0)) -> 0 | S65: 59.964 | AB65: =AB66-TIME(0,0,1) -> 43658.03076 | AE65: 59.96975327 | AF65: 448.6867065
A66: T-55s | B66: 43658.03078 | C66: 59.97108078 | D66: 448.3688965 | P66: ='Main Data Entry'!$G$21 -> 0 | Q66: =IF($C66>(60+'Main Data Entry'!$D$23),(($C66-60-'Main Data Entry'!$D$23)/(60*'Main Data Entry'!$D$22-'Main Data Entry'!$D$23))*(-1)*'Main Data Entry'!$G$21,IF($C66<(60-'Main Data Entry'!$D$23),(($C66-60+'Main Data Entry'!$D$23)/(60*'Main Data Entry'!$D$22-'Main Data Entry'!$D$23))*(-1)*'Main Data Entry'!$G$21,0)) -> 0 | S66: 59.964 | AB66: 43658.03078 | AC66: 59.97108078 | AD66: 448.3688965 | AE66: 59.97108078 | AF66: 448.3688965
A67: T-54s | B67: 43658.03079 | C67: 59.97108078 | D67: 448.3688965 | P67: ='Main Data Entry'!$G$21 -> 0 | Q67: =IF($C67>(60+'Main Data Entry'!$D$23),(($C67-60-'Main Data Entry'!$D$23)/(60*'Main Data Entry'!$D$22-'Main Data Entry'!$D$23))*(-1)*'Main Data Entry'!$G$21,IF($C67<(60-'Main Data Entry'!$D$23),(($C67-60+'Main Data Entry'!$D$23)/(60*'Main Data Entry'!$D$22-'Main Data Entry'!$D$23))*(-1)*'Main Data Entry'!$G$21,0)) -> 0 | S67: 59.964 | AB67: 43658.03079 | AE67: 59.97108078 | AF67: 448.3688965
A68: T-53s | B68: 43658.0308 | C68: 59.9709816 | D68: 448.5578003 | P68: ='Main Data Entry'!$G$21 -> 0 | Q68: =IF($C68>(60+'Main Data Entry'!$D$23),(($C68-60-'Main Data Entry'!$D$23)/(60*'Main Data Entry'!$D$22-'Main Data Entry'!$D$23))*(-1)*'Main Data Entry'!$G$21,IF($C68<(60-'Main Data Entry'!$D$23),(($C68-60+'Main Data Entry'!$D$23)/(60*'Main Data Entry'!$D$22-'Main Data Entry'!$D$23))*(-1)*'Main Data Entry'!$G$21,0)) -> 0 | S68: 59.964 | AB68: 43658.0308 | AC68: 59.9709816 | AD68: 448.5578003 | AE68: 59.9709816 | AF68: 448.5578003
A69: T-52s | B69: 43658.03081 | C69: 59.9709816 | D69: 448.5578003 | P69: ='Main Data Entry'!$G$21 -> 0 | Q69: =IF($C69>(60+'Main Data Entry'!$D$23),(($C69-60-'Main Data Entry'!$D$23)/(60*'Main Data Entry'!$D$22-'Main Data Entry'!$D$23))*(-1)*'Main Data Entry'!$G$21,IF($C69<(60-'Main Data Entry'!$D$23),(($C69-60+'Main Data Entry'!$D$23)/(60*'Main Data Entry'!$D$22-'Main Data Entry'!$D$23))*(-1)*'Main Data Entry'!$G$21,0)) -> 0 | S69: 59.964 | AB69: 43658.03081 | AE69: 59.9709816 | AF69: 448.5578003
A70: T-51s | B70: 43658.03082 | C70: 59.97088242 | D70: 448.5578003 | P70: ='Main Data Entry'!$G$21 -> 0 | Q70: =IF($C70>(60+'Main Data Entry'!$D$23),(($C70-60-'Main Data Entry'!$D$23)/(60*'Main Data Entry'!$D$22-'Main Data Entry'!$D$23))*(-1)*'Main Data Entry'!$G$21,IF($C70<(60-'Main Data Entry'!$D$23),(($C70-60+'Main Data Entry'!$D$23)/(60*'Main Data Entry'!$D$22-'Main Data Entry'!$D$23))*(-1)*'Main Data Entry'!$G$21,0)) -> 0 | S70: 59.964 | AB70: 43658.03082 | AC70: 59.97088242 | AD70: 448.5578003 | AE70: 59.97088242 | AF70: 448.5578003
A71: T-50s | B71: 43658.03083 | C71: 59.97088242 | D71: 448.5578003 | P71: ='Main Data Entry'!$G$21 -> 0 | Q71: =IF($C71>(60+'Main Data Entry'!$D$23),(($C71-60-'Main Data Entry'!$D$23)/(60*'Main Data Entry'!$D$22-'Main Data Entry'!$D$23))*(-1)*'Main Data Entry'!$G$21,IF($C71<(60-'Main Data Entry'!$D$23),(($C71-60+'Main Data Entry'!$D$23)/(60*'Main Data Entry'!$D$22-'Main Data Entry'!$D$23))*(-1)*'Main Data Entry'!$G$21,0)) -> 0 | S71: 59.964 | AB71: 43658.03083 | AE71: 59.97088242 | AF71: 448.5578003
A72: T-49s | B72: 43658.03084 | C72: 59.97078323 | D72: 448.5578003 | P72: ='Main Data Entry'!$G$21 -> 0 | Q72: =IF($C72>(60+'Main Data Entry'!$D$23),(($C72-60-'Main Data Entry'!$D$23)/(60*'Main Data Entry'!$D$22-'Main Data Entry'!$D$23))*(-1)*'Main Data Entry'!$G$21,IF($C72<(60-'Main Data Entry'!$D$23),(($C72-60+'Main Data Entry'!$D$23)/(60*'Main Data Entry'!$D$22-'Main Data Entry'!$D$23))*(-1)*'Main Data Entry'!$G$21,0)) -> 0 | S72: 59.964 | AB72: 43658.03084 | AC72: 59.97078323 | AD72: 448.5578003 | AE72: 59.97078323 | AF72: 448.5578003
A73: T-48s | B73: 43658.03086 | C73: 59.97078323 | D73: 448.5578003 | P73: ='Main Data Entry'!$G$21 -> 0 | Q73: =IF($C73>(60+'Main Data Entry'!$D$23),(($C73-60-'Main Data Entry'!$D$23)/(60*'Main Data Entry'!$D$22-'Main Data Entry'!$D$23))*(-1)*'Main Data Entry'!$G$21,IF($C73<(60-'Main Data Entry'!$D$23),(($C73-60+'Main Data Entry'!$D$23)/(60*'Main Data Entry'!$D$22-'Main Data Entry'!$D$23))*(-1)*'Main Data Entry'!$G$21,0)) -> 0 | S73: 59.964 | AB73: 43658.03086 | AE73: 59.97078323 | AF73: 448.5578003
A74: T-47s | B74: 43658.03087 | C74: 59.97068405 | D74: 448.5578003 | P74: ='Main Data Entry'!$G$21 -> 0 | Q74: =IF($C74>(60+'Main Data Entry'!$D$23),(($C74-60-'Main Data Entry'!$D$23)/(60*'Main Data Entry'!$D$22-'Main Data Entry'!$D$23))*(-1)*'Main Data Entry'!$G$21,IF($C74<(60-'Main Data Entry'!$D$23),(($C74-60+'Main Data Entry'!$D$23)/(60*'Main Data Entry'!$D$22-'Main Data Entry'!$D$23))*(-1)*'Main Data Entry'!$G$21,0)) -> 0 | S74: 59.964 | AB74: 43658.03087 | AC74: 59.97068405 | AD74: 448.5578003 | AE74: 59.97068405 | AF74: 448.5578003
A75: T-46s | B75: 43658.03088 | C75: 59.97068405 | D75: 448.5578003 | P75: ='Main Data Entry'!$G$21 -> 0 | Q75: =IF($C75>(60+'Main Data Entry'!$D$23),(($C75-60-'Main Data Entry'!$D$23)/(60*'Main Data Entry'!$D$22-'Main Data Entry'!$D$23))*(-1)*'Main Data Entry'!$G$21,IF($C75<(60-'Main Data Entry'!$D$23),(($C75-60+'Main Data Entry'!$D$23)/(60*'Main Data Entry'!$D$22-'Main Data Entry'!$D$23))*(-1)*'Main Data Entry'!$G$21,0)) -> 0 | S75: 59.964 | AB75: 43658.03088 | AE75: 59.97068405 | AF75: 448.5578003
A76: T-45s | B76: 43658.03089 | C76: 59.97260666 | D76: 448.2818298 | P76: ='Main Data Entry'!$G$21 -> 0 | Q76: =IF($C76>(60+'Main Data Entry'!$D$23),(($C76-60-'Main Data Entry'!$D$23)/(60*'Main Data Entry'!$D$22-'Main Data Entry'!$D$23))*(-1)*'Main Data Entry'!$G$21,IF($C76<(60-'Main Data Entry'!$D$23),(($C76-60+'Main Data Entry'!$D$23)/(60*'Main Data Entry'!$D$22-'Main Data Entry'!$D$23))*(-1)*'Main Data Entry'!$G$21,0)) -> 0 | S76: 59.964 | AB76: 43658.03089 | AC76: 59.97260666 | AD76: 448.2818298 | AE76: =IF($AC76="",$AE75,IF($AC76<>$AE75,$AC76,$AE75)) -> 59.97260666 | AF76: =IF($AD76="",$AF75,IF($AD76<>$AF75,$AD76,$AF75)) -> 448.2818298
A77: T-44s | B77: 43658.0309 | C77: 59.97260666 | D77: 448.2818298 | P77: ='Main Data Entry'!$G$21 -> 0 | Q77: =IF($C77>(60+'Main Data Entry'!$D$23),(($C77-60-'Main Data Entry'!$D$23)/(60*'Main Data Entry'!$D$22-'Main Data Entry'!$D$23))*(-1)*'Main Data Entry'!$G$21,IF($C77<(60-'Main Data Entry'!$D$23),(($C77-60+'Main Data Entry'!$D$23)/(60*'Main Data Entry'!$D$22-'Main Data Entry'!$D$23))*(-1)*'Main Data Entry'!$G$21,0)) -> 0 | S77: 59.964 | AB77: 43658.0309 | AE77: 59.97260666 | AF77: 448.2818298
A78: T-43s | B78: 43658.03091 | C78: 59.97453308 | D78: 448.5200806 | P78: ='Main Data Entry'!$G$21 -> 0 | Q78: =IF($C78>(60+'Main Data Entry'!$D$23),(($C78-60-'Main Data Entry'!$D$23)/(60*'Main Data Entry'!$D$22-'Main Data Entry'!$D$23))*(-1)*'Main Data Entry'!$G$21,IF($C78<(60-'Main Data Entry'!$D$23),(($C78-60+'Main Data Entry'!$D$23)/(60*'Main Data Entry'!$D$22-'Main Data Entry'!$D$23))*(-1)*'Main Data Entry'!$G$21,0)) -> 0 | S78: 59.964 | AB78: 43658.03091 | AC78: 59.97453308 | AD78: 448.5200806 | AE78: 59.97453308 | AF78: 448.5200806
A79: T-42s | B79: 43658.03093 | C79: 59.97453308 | D79: 448.5200806 | P79: ='Main Data Entry'!$G$21 -> 0 | Q79: =IF($C79>(60+'Main Data Entry'!$D$23),(($C79-60-'Main Data Entry'!$D$23)/(60*'Main Data Entry'!$D$22-'Main Data Entry'!$D$23))*(-1)*'Main Data Entry'!$G$21,IF($C79<(60-'Main Data Entry'!$D$23),(($C79-60+'Main Data Entry'!$D$23)/(60*'Main Data Entry'!$D$22-'Main Data Entry'!$D$23))*(-1)*'Main Data Entry'!$G$21,0)) -> 0 | S79: 59.964 | AB79: 43658.03093 | AE79: 59.97453308 | AF79: 448.5200806
A80: T-41s | B80: 43658.03094 | C80: 59.97454071 | D80: 448.1342468 | P80: ='Main Data Entry'!$G$21 -> 0 | Q80: =IF($C80>(60+'Main Data Entry'!$D$23),(($C80-60-'Main Data Entry'!$D$23)/(60*'Main Data Entry'!$D$22-'Main Data Entry'!$D$23))*(-1)*'Main Data Entry'!$G$21,IF($C80<(60-'Main Data Entry'!$D$23),(($C80-60+'Main Data Entry'!$D$23)/(60*'Main Data Entry'!$D$22-'Main Data Entry'!$D$23))*(-1)*'Main Data Entry'!$G$21,0)) -> 0 | S80: 59.964 | AB80: 43658.03094 | AC80: 59.97454071 | AD80: 448.1342468 | AE80: 59.97454071 | AF80: 448.1342468
A81: T-40s | B81: 43658.03095 | C81: =OFFSET($AE81,-$B$1,0) -> 59.97454071 | D81: =OFFSET($AF81,-$B$1,0) -> 448.1342468 | P81: ='Main Data Entry'!$G$21 -> 0 | Q81: =IF($C81>(60+'Main Data Entry'!$D$23),(($C81-60-'Main Data Entry'!$D$23)/(60*'Main Data Entry'!$D$22-'Main Data Entry'!$D$23))*(-1)*'Main Data Entry'!$G$21,IF($C81<(60-'Main Data Entry'!$D$23),(($C81-60+'Main Data Entry'!$D$23)/(60*'Main Data Entry'!$D$22-'Main Data Entry'!$D$23))*(-1)*'Main Data Entry'!$G$21,0)) -> 0 | S81: =Grid_Nominal_Frequency-Expected_Deadband_Setting -> 59.964 | AB81: =AB82-TIME(0,0,1) -> 43658.03095 | AE81: 59.97454071 | AF81: 448.1342468
A82: T-39s | B82: 43658.03096 | C82: 59.97454071 | D82: 448.1340637 | P82: ='Main Data Entry'!$G$21 -> 0 | Q82: =IF($C82>(60+'Main Data Entry'!$D$23),(($C82-60-'Main Data Entry'!$D$23)/(60*'Main Data Entry'!$D$22-'Main Data Entry'!$D$23))*(-1)*'Main Data Entry'!$G$21,IF($C82<(60-'Main Data Entry'!$D$23),(($C82-60+'Main Data Entry'!$D$23)/(60*'Main Data Entry'!$D$22-'Main Data Entry'!$D$23))*(-1)*'Main Data Entry'!$G$21,0)) -> 0 | S82: 59.964 | AB82: 43658.03096 | AC82: 59.97454071 | AD82: 448.1340637 | AE82: 59.97454071 | AF82: 448.1340637
A83: T-38s | B83: 43658.03097 | C83: 59.97454071 | D83: 448.1340637 | P83: ='Main Data Entry'!$G$21 -> 0 | Q83: =IF($C83>(60+'Main Data Entry'!$D$23),(($C83-60-'Main Data Entry'!$D$23)/(60*'Main Data Entry'!$D$22-'Main Data Entry'!$D$23))*(-1)*'Main Data Entry'!$G$21,IF($C83<(60-'Main Data Entry'!$D$23),(($C83-60+'Main Data Entry'!$D$23)/(60*'Main Data Entry'!$D$22-'Main Data Entry'!$D$23))*(-1)*'Main Data Entry'!$G$21,0)) -> 0 | S83: 59.964 | AB83: 43658.03097 | AE83: 59.97454071 | AF83: 448.1340637
A84: T-37s | B84: 43658.03098 | C84: 59.97454071 | D84: 448.1340637 | P84: ='Main Data Entry'!$G$21 -> 0 | Q84: =IF($C84>(60+'Main Data Entry'!$D$23),(($C84-60-'Main Data Entry'!$D$23)/(60*'Main Data Entry'!$D$22-'Main Data Entry'!$D$23))*(-1)*'Main Data Entry'!$G$21,IF($C84<(60-'Main Data Entry'!$D$23),(($C84-60+'Main Data Entry'!$D$23)/(60*'Main Data Entry'!$D$22-'Main Data Entry'!$D$23))*(-1)*'Main Data Entry'!$G$21,0)) -> 0 | S84: 59.964 | AB84: 43658.03098 | AC84: 59.97454071 | AD84: 448.1340637 | AE84: 59.97454071 | AF84: 448.1340637
A85: T-36s | B85: 43658.031 | C85: 59.97454071 | D85: 448.1340637 | P85: ='Main Data Entry'!$G$21 -> 0 | Q85: =IF($C85>(60+'Main Data Entry'!$D$23),(($C85-60-'Main Data Entry'!$D$23)/(60*'Main Data Entry'!$D$22-'Main Data Entry'!$D$23))*(-1)*'Main Data Entry'!$G$21,IF($C85<(60-'Main Data Entry'!$D$23),(($C85-60+'Main Data Entry'!$D$23)/(60*'Main Data Entry'!$D$22-'Main Data Entry'!$D$23))*(-1)*'Main Data Entry'!$G$21,0)) -> 0 | S85: 59.964 | AB85: 43658.031 | AE85: 59.97454071 | AF85: 448.1340637
A86: T-35s | B86: 43658.03101 | C86: 59.97454071 | D86: 448.1340637 | P86: ='Main Data Entry'!$G$21 -> 0 | Q86: =IF($C86>(60+'Main Data Entry'!$D$23),(($C86-60-'Main Data Entry'!$D$23)/(60*'Main Data Entry'!$D$22-'Main Data Entry'!$D$23))*(-1)*'Main Data Entry'!$G$21,IF($C86<(60-'Main Data Entry'!$D$23),(($C86-60+'Main Data Entry'!$D$23)/(60*'Main Data Entry'!$D$22-'Main Data Entry'!$D$23))*(-1)*'Main Data Entry'!$G$21,0)) -> 0 | S86: 59.964 | AB86: 43658.03101 | AC86: 59.97454071 | AD86: 448.1340637 | AE86: 59.97454071 | AF86: 448.1340637
A87: T-34s | B87: 43658.03102 | C87: 59.97454071 | D87: 448.1340637 | P87: ='Main Data Entry'!$G$21 -> 0 | Q87: =IF($C87>(60+'Main Data Entry'!$D$23),(($C87-60-'Main Data Entry'!$D$23)/(60*'Main Data Entry'!$D$22-'Main Data Entry'!$D$23))*(-1)*'Main Data Entry'!$G$21,IF($C87<(60-'Main Data Entry'!$D$23),(($C87-60+'Main Data Entry'!$D$23)/(60*'Main Data Entry'!$D$22-'Main Data Entry'!$D$23))*(-1)*'Main Data Entry'!$G$21,0)) -> 0 | S87: 59.964 | AB87: 43658.03102 | AE87: 59.97454071 | AF87: 448.1340637
A88: T-33s | B88: 43658.03103 | C88: 59.97800827 | D88: 448.3268127 | P88: ='Main Data Entry'!$G$21 -> 0 | Q88: =IF($C88>(60+'Main Data Entry'!$D$23),(($C88-60-'Main Data Entry'!$D$23)/(60*'Main Data Entry'!$D$22-'Main Data Entry'!$D$23))*(-1)*'Main Data Entry'!$G$21,IF($C88<(60-'Main Data Entry'!$D$23),(($C88-60+'Main Data Entry'!$D$23)/(60*'Main Data Entry'!$D$22-'Main Data Entry'!$D$23))*(-1)*'Main Data Entry'!$G$21,0)) -> 0 | S88: 59.964 | AB88: 43658.03103 | AC88: 59.97800827 | AD88: 448.3268127 | AE88: 59.97800827 | AF88: 448.3268127
A89: T-32s | B89: 43658.03104 | C89: 59.97800827 | D89: 448.3268127 | P89: ='Main Data Entry'!$G$21 -> 0 | Q89: =IF($C89>(60+'Main Data Entry'!$D$23),(($C89-60-'Main Data Entry'!$D$23)/(60*'Main Data Entry'!$D$22-'Main Data Entry'!$D$23))*(-1)*'Main Data Entry'!$G$21,IF($C89<(60-'Main Data Entry'!$D$23),(($C89-60+'Main Data Entry'!$D$23)/(60*'Main Data Entry'!$D$22-'Main Data Entry'!$D$23))*(-1)*'Main Data Entry'!$G$21,0)) -> 0 | S89: 59.964 | AB89: 43658.03104 | AE89: 59.97800827 | AF89: 448.3268127
A90: T-31s | B90: 43658.03105 | C90: 59.97800827 | D90: 448.3268127 | P90: ='Main Data Entry'!$G$21 -> 0 | Q90: =IF($C90>(60+'Main Data Entry'!$D$23),(($C90-60-'Main Data Entry'!$D$23)/(60*'Main Data Entry'!$D$22-'Main Data Entry'!$D$23))*(-1)*'Main Data Entry'!$G$21,IF($C90<(60-'Main Data Entry'!$D$23),(($C90-60+'Main Data Entry'!$D$23)/(60*'Main Data Entry'!$D$22-'Main Data Entry'!$D$23))*(-1)*'Main Data Entry'!$G$21,0)) -> 0 | S90: 59.964 | AB90: 43658.03105 | AC90: 59.97800827 | AD90: 448.3268127 | AE90: 59.97800827 | AF90: 448.3268127
A91: T-30s | B91: 43658.03106 | C91: 59.97800827 | D91: 448.3268127 | P91: ='Main Data Entry'!$G$21 -> 0 | Q91: =IF($C91>(60+'Main Data Entry'!$D$23),(($C91-60-'Main Data Entry'!$D$23)/(60*'Main Data Entry'!$D$22-'Main Data Entry'!$D$23))*(-1)*'Main Data Entry'!$G$21,IF($C91<(60-'Main Data Entry'!$D$23),(($C91-60+'Main Data Entry'!$D$23)/(60*'Main Data Entry'!$D$22-'Main Data Entry'!$D$23))*(-1)*'Main Data Entry'!$G$21,0)) -> 0 | S91: 59.964 | AB91: 43658.03106 | AE91: 59.97800827 | AF91: 448.3268127
A92: T-29s | B92: 43658.03108 | C92: 59.97800827 | D92: 448.3268127 | P92: ='Main Data Entry'!$G$21 -> 0 | Q92: =IF($C92>(60+'Main Data Entry'!$D$23),(($C92-60-'Main Data Entry'!$D$23)/(60*'Main Data Entry'!$D$22-'Main Data Entry'!$D$23))*(-1)*'Main Data Entry'!$G$21,IF($C92<(60-'Main Data Entry'!$D$23),(($C92-60+'Main Data Entry'!$D$23)/(60*'Main Data Entry'!$D$22-'Main Data Entry'!$D$23))*(-1)*'Main Data Entry'!$G$21,0)) -> 0 | S92: 59.964 | AB92: 43658.03108 | AC92: 59.97800827 | AD92: 448.3268127 | AE92: 59.97800827 | AF92: 448.3268127
A93: T-28s | B93: 43658.03109 | C93: 59.97800827 | D93: 448.3268127 | P93: ='Main Data Entry'!$G$21 -> 0 | Q93: =IF($C93>(60+'Main Data Entry'!$D$23),(($C93-60-'Main Data Entry'!$D$23)/(60*'Main Data Entry'!$D$22-'Main Data Entry'!$D$23))*(-1)*'Main Data Entry'!$G$21,IF($C93<(60-'Main Data Entry'!$D$23),(($C93-60+'Main Data Entry'!$D$23)/(60*'Main Data Entry'!$D$22-'Main Data Entry'!$D$23))*(-1)*'Main Data Entry'!$G$21,0)) -> 0 | S93: 59.964 | AB93: 43658.03109 | AE93: 59.97800827 | AF93: 448.3268127
A94: T-27s | B94: 43658.0311 | C94: 59.97800827 | D94: 448.3268127 | P94: ='Main Data Entry'!$G$21 -> 0 | Q94: =IF($C94>(60+'Main Data Entry'!$D$23),(($C94-60-'Main Data Entry'!$D$23)/(60*'Main Data Entry'!$D$22-'Main Data Entry'!$D$23))*(-1)*'Main Data Entry'!$G$21,IF($C94<(60-'Main Data Entry'!$D$23),(($C94-60+'Main Data Entry'!$D$23)/(60*'Main Data Entry'!$D$22-'Main Data Entry'!$D$23))*(-1)*'Main Data Entry'!$G$21,0)) -> 0 | S94: 59.964 | AB94: 43658.0311 | AC94: 59.97800827 | AD94: 448.3268127 | AE94: 59.97800827 | AF94: 448.3268127
A95: T-26s | B95: 43658.03111 | C95: 59.97800827 | D95: 448.3268127 | P95: ='Main Data Entry'!$G$21 -> 0 | Q95: =IF($C95>(60+'Main Data Entry'!$D$23),(($C95-60-'Main Data Entry'!$D$23)/(60*'Main Data Entry'!$D$22-'Main Data Entry'!$D$23))*(-1)*'Main Data Entry'!$G$21,IF($C95<(60-'Main Data Entry'!$D$23),(($C95-60+'Main Data Entry'!$D$23)/(60*'Main Data Entry'!$D$22-'Main Data Entry'!$D$23))*(-1)*'Main Data Entry'!$G$21,0)) -> 0 | S95: 59.964 | AB95: 43658.03111 | AE95: 59.97800827 | AF95: 448.3268127
A96: T-25s | B96: 43658.03112 | C96: 59.98408508 | D96: 447.9363098 | P96: ='Main Data Entry'!$G$21 -> 0 | Q96: =IF($C96>(60+'Main Data Entry'!$D$23),(($C96-60-'Main Data Entry'!$D$23)/(60*'Main Data Entry'!$D$22-'Main Data Entry'!$D$23))*(-1)*'Main Data Entry'!$G$21,IF($C96<(60-'Main Data Entry'!$D$23),(($C96-60+'Main Data Entry'!$D$23)/(60*'Main Data Entry'!$D$22-'Main Data Entry'!$D$23))*(-1)*'Main Data Entry'!$G$21,0)) -> 0 | S96: 59.964 | AB96: 43658.03112 | AC96: 59.98408508 | AD96: 447.9363098 | AE96: 59.98408508 | AF96: 447.9363098
A97: T-24s | B97: 43658.03113 | C97: 59.98408508 | D97: 447.9363098 | P97: ='Main Data Entry'!$G$21 -> 0 | Q97: =IF($C97>(60+'Main Data Entry'!$D$23),(($C97-60-'Main Data Entry'!$D$23)/(60*'Main Data Entry'!$D$22-'Main Data Entry'!$D$23))*(-1)*'Main Data Entry'!$G$21,IF($C97<(60-'Main Data Entry'!$D$23),(($C97-60+'Main Data Entry'!$D$23)/(60*'Main Data Entry'!$D$22-'Main Data Entry'!$D$23))*(-1)*'Main Data Entry'!$G$21,0)) -> 0 | S97: 59.964 | AB97: =AB98-TIME(0,0,1) -> 43658.03113 | AE97: 59.98408508 | AF97: 447.9363098
A98: T-23s | B98: 43658.03115 | C98: 59.98586655 | D98: 447.8956909 | P98: ='Main Data Entry'!$G$21 -> 0 | Q98: =IF($C98>(60+'Main Data Entry'!$D$23),(($C98-60-'Main Data Entry'!$D$23)/(60*'Main Data Entry'!$D$22-'Main Data Entry'!$D$23))*(-1)*'Main Data Entry'!$G$21,IF($C98<(60-'Main Data Entry'!$D$23),(($C98-60+'Main Data Entry'!$D$23)/(60*'Main Data Entry'!$D$22-'Main Data Entry'!$D$23))*(-1)*'Main Data Entry'!$G$21,0)) -> 0 | S98: 59.964 | AB98: 43658.03115 | AC98: 59.98586655 | AD98: 447.8956909 | AE98: 59.98586655 | AF98: 447.8956909
A99: T-22s | B99: 43658.03116 | C99: 59.98586655 | D99: 447.8956909 | P99: ='Main Data Entry'!$G$21 -> 0 | Q99: =IF($C99>(60+'Main Data Entry'!$D$23),(($C99-60-'Main Data Entry'!$D$23)/(60*'Main Data Entry'!$D$22-'Main Data Entry'!$D$23))*(-1)*'Main Data Entry'!$G$21,IF($C99<(60-'Main Data Entry'!$D$23),(($C99-60+'Main Data Entry'!$D$23)/(60*'Main Data Entry'!$D$22-'Main Data Entry'!$D$23))*(-1)*'Main Data Entry'!$G$21,0)) -> 0 | S99: 59.964 | AB99: 43658.03116 | AE99: 59.98586655 | AF99: 447.8956909
A100: T-21s | B100: 43658.03117 | C100: 59.98586655 | D100: 447.8565063 | P100: ='Main Data Entry'!$G$21 -> 0 | Q100: =IF($C100>(60+'Main Data Entry'!$D$23),(($C100-60-'Main Data Entry'!$D$23)/(60*'Main Data Entry'!$D$22-'Main Data Entry'!$D$23))*(-1)*'Main Data Entry'!$G$21,IF($C100<(60-'Main Data Entry'!$D$23),(($C100-60+'Main Data Entry'!$D$23)/(60*'Main Data Entry'!$D$22-'Main Data Entry'!$D$23))*(-1)*'Main Data Entry'!$G$21,0)) -> 0 | S100: 59.964 | AB100: 43658.03117 | AC100: 59.98586655 | AD100: 447.8565063 | AE100: 59.98586655 | AF100: 447.8565063
A101: T-20s | B101: 43658.03118 | C101: 59.98586655 | D101: 447.8565063 | P101: ='Main Data Entry'!$G$21 -> 0 | Q101: =IF($C101>(60+'Main Data Entry'!$D$23),(($C101-60-'Main Data Entry'!$D$23)/(60*'Main Data Entry'!$D$22-'Main Data Entry'!$D$23))*(-1)*'Main Data Entry'!$G$21,IF($C101<(60-'Main Data Entry'!$D$23),(($C101-60+'Main Data Entry'!$D$23)/(60*'Main Data Entry'!$D$22-'Main Data Entry'!$D$23))*(-1)*'Main Data Entry'!$G$21,0)) -> 0 | S101: 59.964 | AB101: 43658.03118 | AE101: 59.98586655 | AF101: 447.8565063
A102: T-19s | B102: 43658.03119 | C102: 59.98586655 | D102: 447.8172913 | P102: ='Main Data Entry'!$G$21 -> 0 | Q102: =IF($C102>(60+'Main Data Entry'!$D$23),(($C102-60-'Main Data Entry'!$D$23)/(60*'Main Data Entry'!$D$22-'Main Data Entry'!$D$23))*(-1)*'Main Data Entry'!$G$21,IF($C102<(60-'Main Data Entry'!$D$23),(($C102-60+'Main Data Entry'!$D$23)/(60*'Main Data Entry'!$D$22-'Main Data Entry'!$D$23))*(-1)*'Main Data Entry'!$G$21,0)) -> 0 | S102: 59.964 | AB102: 43658.03119 | AC102: 59.98586655 | AD102: 447.8172913 | AE102: 59.98586655 | AF102: 447.8172913
A103: T-18s | B103: 43658.0312 | C103: 59.98586655 | D103: 447.8172913 | P103: ='Main Data Entry'!$G$21 -> 0 | Q103: =IF($C103>(60+'Main Data Entry'!$D$23),(($C103-60-'Main Data Entry'!$D$23)/(60*'Main Data Entry'!$D$22-'Main Data Entry'!$D$23))*(-1)*'Main Data Entry'!$G$21,IF($C103<(60-'Main Data Entry'!$D$23),(($C103-60+'Main Data Entry'!$D$23)/(60*'Main Data Entry'!$D$22-'Main Data Entry'!$D$23))*(-1)*'Main Data Entry'!$G$21,0)) -> 0 | S103: 59.964 | AB103: 43658.0312 | AE103: 59.98586655 | AF103: 447.8172913
A104: T-17s | B104: 43658.03122 | C104: 59.98586273 | D104: 447.7780762 | P104: ='Main Data Entry'!$G$21 -> 0 | Q104: =IF($C104>(60+'Main Data Entry'!$D$23),(($C104-60-'Main Data Entry'!$D$23)/(60*'Main Data Entry'!$D$22-'Main Data Entry'!$D$23))*(-1)*'Main Data Entry'!$G$21,IF($C104<(60-'Main Data Entry'!$D$23),(($C104-60+'Main Data Entry'!$D$23)/(60*'Main Data Entry'!$D$22-'Main Data Entry'!$D$23))*(-1)*'Main Data Entry'!$G$21,0)) -> 0 | S104: 59.964 | AB104: 43658.03122 | AC104: 59.98586273 | AD104: 447.7780762 | AE104: 59.98586273 | AF104: 447.7780762
A105: T-16s | B105: 43658.03123 | C105: 59.98586273 | D105: 447.7780762 | E105: =AVERAGE($C$105:$C$119) -> 59.98549143 | F105: =AVERAGE($D$105:$D$119) -> 448.1994751 | H105: =E105 -> 59.98549143 | J105: =F105 -> 448.1994751 | P105: ='Main Data Entry'!$G$21 -> 0 | Q105: =IF($C105>(60+'Main Data Entry'!$D$23),(($C105-60-'Main Data Entry'!$D$23)/(60*'Main Data Entry'!$D$22-'Main Data Entry'!$D$23))*(-1)*'Main Data Entry'!$G$21,IF($C105<(60-'Main Data Entry'!$D$23),(($C105-60+'Main Data Entry'!$D$23)/(60*'Main Data Entry'!$D$22-'Main Data Entry'!$D$23))*(-1)*'Main Data Entry'!$G$21,0)) -> 0 | R105: =AVERAGE($Q$105:$Q$119) -> 0 | S105: 59.964 | AB105: 43658.03123 | AE105: 59.98586273 | AF105: 447.7780762
A106: T-15s | B106: 43658.03124 | C106: 59.98586273 | D106: 447.9904175 | E106: 59.98549143 | F106: 448.1994751 | H106: 59.98549143 | J106: 448.1994751 | P106: ='Main Data Entry'!$G$21 -> 0 | Q106: =IF($C106>(60+'Main Data Entry'!$D$23),(($C106-60-'Main Data Entry'!$D$23)/(60*'Main Data Entry'!$D$22-'Main Data Entry'!$D$23))*(-1)*'Main Data Entry'!$G$21,IF($C106<(60-'Main Data Entry'!$D$23),(($C106-60+'Main Data Entry'!$D$23)/(60*'Main Data Entry'!$D$22-'Main Data Entry'!$D$23))*(-1)*'Main Data Entry'!$G$21,0)) -> 0 | R106: 0 | S106: 59.964 | AB106: 43658.03124 | AC106: 59.98586273 | AD106: 447.9904175 | AE106: 59.98586273 | AF106: 447.9904175
A107: T-14s | B107: 43658.03125 | C107: 59.98586273 | D107: 447.9904175 | E107: 59.98549143 | F107: 448.1994751 | H107: 59.98549143 | J107: 448.1994751 | P107: ='Main Data Entry'!$G$21 -> 0 | Q107: =IF($C107>(60+'Main Data Entry'!$D$23),(($C107-60-'Main Data Entry'!$D$23)/(60*'Main Data Entry'!$D$22-'Main Data Entry'!$D$23))*(-1)*'Main Data Entry'!$G$21,IF($C107<(60-'Main Data Entry'!$D$23),(($C107-60+'Main Data Entry'!$D$23)/(60*'Main Data Entry'!$D$22-'Main Data Entry'!$D$23))*(-1)*'Main Data Entry'!$G$21,0)) -> 0 | R107: 0 | S107: 59.964 | AB107: 43658.03125 | AE107: 59.98586273 | AF107: 447.9904175
A108: T-13s | B108: 43658.03126 | C108: 59.98559952 | D108: 448.2033691 | E108: 59.98549143 | F108: 448.1994751 | H108: 59.98549143 | J108: 448.1994751 | P108: ='Main Data Entry'!$G$21 -> 0 | Q108: =IF($C108>(60+'Main Data Entry'!$D$23),(($C108-60-'Main Data Entry'!$D$23)/(60*'Main Data Entry'!$D$22-'Main Data Entry'!$D$23))*(-1)*'Main Data Entry'!$G$21,IF($C108<(60-'Main Data Entry'!$D$23),(($C108-60+'Main Data Entry'!$D$23)/(60*'Main Data Entry'!$D$22-'Main Data Entry'!$D$23))*(-1)*'Main Data Entry'!$G$21,0)) -> 0 | R108: 0 | S108: 59.964 | AB108: 43658.03126 | AC108: 59.98559952 | AD108: 448.2033691 | AE108: 59.98559952 | AF108: 448.2033691
A109: T-12s | B109: 43658.03127 | C109: 59.98559952 | D109: 448.2033691 | E109: 59.98549143 | F109: 448.1994751 | H109: 59.98549143 | J109: 448.1994751 | P109: ='Main Data Entry'!$G$21 -> 0 | Q109: =IF($C109>(60+'Main Data Entry'!$D$23),(($C109-60-'Main Data Entry'!$D$23)/(60*'Main Data Entry'!$D$22-'Main Data Entry'!$D$23))*(-1)*'Main Data Entry'!$G$21,IF($C109<(60-'Main Data Entry'!$D$23),(($C109-60+'Main Data Entry'!$D$23)/(60*'Main Data Entry'!$D$22-'Main Data Entry'!$D$23))*(-1)*'Main Data Entry'!$G$21,0)) -> 0 | R109: 0 | S109: 59.964 | AB109: 43658.03127 | AE109: 59.98559952 | AF109: 448.2033691
A110: T-11s | B110: 43658.03128 | C110: 59.9853363 | D110: 448.2302856 | E110: 59.98549143 | F110: 448.1994751 | H110: 59.98549143 | J110: 448.1994751 | P110: ='Main Data Entry'!$G$21 -> 0 | Q110: =IF($C110>(60+'Main Data Entry'!$D$23),(($C110-60-'Main Data Entry'!$D$23)/(60*'Main Data Entry'!$D$22-'Main Data Entry'!$D$23))*(-1)*'Main Data Entry'!$G$21,IF($C110<(60-'Main Data Entry'!$D$23),(($C110-60+'Main Data Entry'!$D$23)/(60*'Main Data Entry'!$D$22-'Main Data Entry'!$D$23))*(-1)*'Main Data Entry'!$G$21,0)) -> 0 | R110: 0 | S110: 59.964 | AB110: 43658.03128 | AC110: 59.9853363 | AD110: 448.2302856 | AE110: 59.9853363 | AF110: 448.2302856
A111: T-10s | B111: 43658.0313 | C111: 59.9853363 | D111: 448.2302856 | E111: 59.98549143 | F111: 448.1994751 | H111: 59.98549143 | J111: 448.1994751 | P111: ='Main Data Entry'!$G$21 -> 0 | Q111: =IF($C111>(60+'Main Data Entry'!$D$23),(($C111-60-'Main Data Entry'!$D$23)/(60*'Main Data Entry'!$D$22-'Main Data Entry'!$D$23))*(-1)*'Main Data Entry'!$G$21,IF($C111<(60-'Main Data Entry'!$D$23),(($C111-60+'Main Data Entry'!$D$23)/(60*'Main Data Entry'!$D$22-'Main Data Entry'!$D$23))*(-1)*'Main Data Entry'!$G$21,0)) -> 0 | R111: 0 | S111: 59.964 | AB111: 43658.0313 | AE111: 59.9853363 | AF111: 448.2302856
A112: T-9s | B112: 43658.03131 | C112: 59.98507309 | D112: 448.2564697 | E112: 59.98549143 | F112: 448.1994751 | H112: 59.98549143 | J112: 448.1994751 | P112: ='Main Data Entry'!$G$21 -> 0 | Q112: =IF($C112>(60+'Main Data Entry'!$D$23),(($C112-60-'Main Data Entry'!$D$23)/(60*'Main Data Entry'!$D$22-'Main Data Entry'!$D$23))*(-1)*'Main Data Entry'!$G$21,IF($C112<(60-'Main Data Entry'!$D$23),(($C112-60+'Main Data Entry'!$D$23)/(60*'Main Data Entry'!$D$22-'Main Data Entry'!$D$23))*(-1)*'Main Data Entry'!$G$21,0)) -> 0 | R112: 0 | S112: 59.964 | AB112: 43658.03131 | AC112: 59.98507309 | AD112: 448.2564697 | AE112: 59.98507309 | AF112: 448.2564697
A113: T-8s | B113: 43658.03132 | C113: =OFFSET($AE113,-$B$1,0) -> 59.98507309 | D113: =OFFSET($AF113,-$B$1,0) -> 448.2564697 | E113: 59.98549143 | F113: 448.1994751 | H113: 59.98549143 | J113: 448.1994751 | P113: ='Main Data Entry'!$G$21 -> 0 | Q113: =IF($C113>(60+'Main Data Entry'!$D$23),(($C113-60-'Main Data Entry'!$D$23)/(60*'Main Data Entry'!$D$22-'Main Data Entry'!$D$23))*(-1)*'Main Data Entry'!$G$21,IF($C113<(60-'Main Data Entry'!$D$23),(($C113-60+'Main Data Entry'!$D$23)/(60*'Main Data Entry'!$D$22-'Main Data Entry'!$D$23))*(-1)*'Main Data Entry'!$G$21,0)) -> 0 | R113: 0 | S113: =Grid_Nominal_Frequency-Expected_Deadband_Setting -> 59.964 | AB113: =AB114-TIME(0,0,1) -> 43658.03132 | AE113: 59.98507309 | AF113: 448.2564697
A114: T-7s | B114: =B115-TIME(0,0,1) -> 43658.03133 | C114: 59.98480606 | D114: 448.2826538 | E114: 59.98549143 | F114: 448.1994751 | H114: 59.98549143 | J114: 448.1994751 | P114: ='Main Data Entry'!$G$21 -> 0 | Q114: =IF($C114>(60+'Main Data Entry'!$D$23),(($C114-60-'Main Data Entry'!$D$23)/(60*'Main Data Entry'!$D$22-'Main Data Entry'!$D$23))*(-1)*'Main Data Entry'!$G$21,IF($C114<(60-'Main Data Entry'!$D$23),(($C114-60+'Main Data Entry'!$D$23)/(60*'Main Data Entry'!$D$22-'Main Data Entry'!$D$23))*(-1)*'Main Data Entry'!$G$21,0)) -> 0 | R114: 0 | S114: 59.964 | AB114: 43658.03133 | AC114: 59.98480606 | AD114: 448.2826538 | AE114: 59.98480606 | AF114: 448.2826538
A115: T-6s | B115: 43658.03134 | C115: 59.98480606 | D115: 448.2826538 | E115: 59.98549143 | F115: 448.1994751 | H115: 59.98549143 | J115: 448.1994751 | P115: ='Main Data Entry'!$G$21 -> 0 | Q115: =IF($C115>(60+'Main Data Entry'!$D$23),(($C115-60-'Main Data Entry'!$D$23)/(60*'Main Data Entry'!$D$22-'Main Data Entry'!$D$23))*(-1)*'Main Data Entry'!$G$21,IF($C115<(60-'Main Data Entry'!$D$23),(($C115-60+'Main Data Entry'!$D$23)/(60*'Main Data Entry'!$D$22-'Main Data Entry'!$D$23))*(-1)*'Main Data Entry'!$G$21,0)) -> 0 | R115: 0 | S115: 59.964 | AB115: 43658.03134 | AE115: 59.98480606 | AF115: 448.2826538
A116: T-5s | B116: 43658.03135 | C116: 59.98454285 | D116: 448.3088379 | E116: 59.98549143 | F116: 448.1994751 | H116: 59.98549143 | J116: 448.1994751 | P116: ='Main Data Entry'!$G$21 -> 0 | Q116: =IF($C116>(60+'Main Data Entry'!$D$23),(($C116-60-'Main Data Entry'!$D$23)/(60*'Main Data Entry'!$D$22-'Main Data Entry'!$D$23))*(-1)*'Main Data Entry'!$G$21,IF($C116<(60-'Main Data Entry'!$D$23),(($C116-60+'Main Data Entry'!$D$23)/(60*'Main Data Entry'!$D$22-'Main Data Entry'!$D$23))*(-1)*'Main Data Entry'!$G$21,0)) -> 0 | R116: 0 | S116: 59.964 | AB116: 43658.03135 | AC116: 59.98454285 | AD116: 448.3088379 | AE116: 59.98454285 | AF116: 448.3088379
A117: T-4s | B117: 43658.03137 | C117: 59.98454285 | D117: 448.3088379 | E117: 59.98549143 | F117: 448.1994751 | H117: 59.98549143 | J117: 448.1994751 | P117: ='Main Data Entry'!$G$21 -> 0 | Q117: =IF($C117>(60+'Main Data Entry'!$D$23),(($C117-60-'Main Data Entry'!$D$23)/(60*'Main Data Entry'!$D$22-'Main Data Entry'!$D$23))*(-1)*'Main Data Entry'!$G$21,IF($C117<(60-'Main Data Entry'!$D$23),(($C117-60+'Main Data Entry'!$D$23)/(60*'Main Data Entry'!$D$22-'Main Data Entry'!$D$23))*(-1)*'Main Data Entry'!$G$21,0)) -> 0 | R117: 0 | S117: 59.964 | AB117: 43658.03137 | AE117: 59.98454285 | AF117: 448.3088379
A118: T-3s | B118: 43658.03138 | C118: 59.98703384 | D118: 448.3349915 | E118: 59.98549143 | F118: 448.1994751 | H118: 59.98549143 | J118: 448.1994751 | P118: ='Main Data Entry'!$G$21 -> 0 | Q118: =IF($C118>(60+'Main Data Entry'!$D$23),(($C118-60-'Main Data Entry'!$D$23)/(60*'Main Data Entry'!$D$22-'Main Data Entry'!$D$23))*(-1)*'Main Data Entry'!$G$21,IF($C118<(60-'Main Data Entry'!$D$23),(($C118-60+'Main Data Entry'!$D$23)/(60*'Main Data Entry'!$D$22-'Main Data Entry'!$D$23))*(-1)*'Main Data Entry'!$G$21,0)) -> 0 | R118: 0 | S118: 59.964 | AB118: 43658.03138 | AC118: 59.98703384 | AD118: 448.3349915 | AE118: 59.98703384 | AF118: 448.3349915
A119: T-2s | B119: 43658.03139 | C119: 59.98703384 | D119: 448.3349915 | E119: 59.98549143 | F119: 448.1994751 | H119: 59.98549143 | J119: 448.1994751 | P119: ='Main Data Entry'!$G$21 -> 0 | Q119: =IF($C119>(60+'Main Data Entry'!$D$23),(($C119-60-'Main Data Entry'!$D$23)/(60*'Main Data Entry'!$D$22-'Main Data Entry'!$D$23))*(-1)*'Main Data Entry'!$G$21,IF($C119<(60-'Main Data Entry'!$D$23),(($C119-60+'Main Data Entry'!$D$23)/(60*'Main Data Entry'!$D$22-'Main Data Entry'!$D$23))*(-1)*'Main Data Entry'!$G$21,0)) -> 0 | R119: 0 | S119: 59.964 | AB119: 43658.03139 | AE119: 59.98703384 | AF119: 448.3349915
A120: T-1s | B120: 43658.0314 | C120: 59.98704147 | D120: 448.3611755 | G120: -1000000000 | P120: ='Main Data Entry'!$G$21 -> 0 | Q120: =IF($C120>(60+'Main Data Entry'!$D$23),(($C120-60-'Main Data Entry'!$D$23)/(60*'Main Data Entry'!$D$22-'Main Data Entry'!$D$23))*(-1)*'Main Data Entry'!$G$21,IF($C120<(60-'Main Data Entry'!$D$23),(($C120-60+'Main Data Entry'!$D$23)/(60*'Main Data Entry'!$D$22-'Main Data Entry'!$D$23))*(-1)*'Main Data Entry'!$G$21,0)) -> 0 | S120: 59.964 | AB120: 43658.0314 | AC120: 59.98704147 | AD120: 448.3611755 | AE120: 59.98704147 | AF120: 448.3611755
A121: T=0 | B121: =$P$2+IF($B$1>0,-TIME(0,0,ABS($B$1)),+TIME(0,0,ABS($B$1))) -> 43658.03141 | C121: 59.98704147 | D121: 448.3611755 | G121: 60 | P121: ='Main Data Entry'!$G$21 -> 0 | Q121: =IF($C121>(60+'Main Data Entry'!$D$23),(($C121-60-'Main Data Entry'!$D$23)/(60*'Main Data Entry'!$D$22-'Main Data Entry'!$D$23))*(-1)*'Main Data Entry'!$G$21,IF($C121<(60-'Main Data Entry'!$D$23),(($C121-60+'Main Data Entry'!$D$23)/(60*'Main Data Entry'!$D$22-'Main Data Entry'!$D$23))*(-1)*'Main Data Entry'!$G$21,0)) -> 0 | S121: 59.964 | AB121: =$P$2 -> 43658.03141 | AE121: 59.98704147 | AF121: 448.3611755
A122: T+1s | B122: =B121+TIME(0,0,1) -> 43658.03142 | C122: 59.98704147 | D122: 448.3873596 | G122: 1000000000 | P122: ='Main Data Entry'!$G$21 -> 0 | Q122: =IF($C122>(60+'Main Data Entry'!$D$23),(($C122-60-'Main Data Entry'!$D$23)/(60*'Main Data Entry'!$D$22-'Main Data Entry'!$D$23))*(-1)*'Main Data Entry'!$G$21,IF($C122<(60-'Main Data Entry'!$D$23),(($C122-60+'Main Data Entry'!$D$23)/(60*'Main Data Entry'!$D$22-'Main Data Entry'!$D$23))*(-1)*'Main Data Entry'!$G$21,0)) -> 0 | S122: 59.964 | AB122: =AB121+TIME(0,0,1) -> 43658.03142 | AC122: 59.98704147 | AD122: 448.3873596 | AE122: 59.98704147 | AF122: 448.3873596
A123: T+2s | B123: =B122+TIME(0,0,1) -> 43658.03144 | C123: 59.98704147 | D123: 448.3873596 | P123: ='Main Data Entry'!$G$21 -> 0 | Q123: =IF($C123>(60+'Main Data Entry'!$D$23),(($C123-60-'Main Data Entry'!$D$23)/(60*'Main Data Entry'!$D$22-'Main Data Entry'!$D$23))*(-1)*'Main Data Entry'!$G$21,IF($C123<(60-'Main Data Entry'!$D$23),(($C123-60+'Main Data Entry'!$D$23)/(60*'Main Data Entry'!$D$22-'Main Data Entry'!$D$23))*(-1)*'Main Data Entry'!$G$21,0)) -> 0 | S123: 59.964 | AB123: 43658.03144 | AE123: 59.98704147 | AF123: 448.3873596
A124: T+3s | B124: 43658.03145 | C124: 59.98704147 | D124: 448.4135437 | P124: ='Main Data Entry'!$G$21 -> 0 | Q124: =IF($C124>(60+'Main Data Entry'!$D$23),(($C124-60-'Main Data Entry'!$D$23)/(60*'Main Data Entry'!$D$22-'Main Data Entry'!$D$23))*(-1)*'Main Data Entry'!$G$21,IF($C124<(60-'Main Data Entry'!$D$23),(($C124-60+'Main Data Entry'!$D$23)/(60*'Main Data Entry'!$D$22-'Main Data Entry'!$D$23))*(-1)*'Main Data Entry'!$G$21,0)) -> 0 | S124: 59.964 | AB124: 43658.03145 | AC124: 59.98704147 | AD124: 448.4135437 | AE124: 59.98704147 | AF124: 448.4135437
A125: T+4s | B125: 43658.03146 | C125: 59.98704147 | D125: 448.4135437 | P125: ='Main Data Entry'!$G$21 -> 0 | Q125: =IF($C125>(60+'Main Data Entry'!$D$23),(($C125-60-'Main Data Entry'!$D$23)/(60*'Main Data Entry'!$D$22-'Main Data Entry'!$D$23))*(-1)*'Main Data Entry'!$G$21,IF($C125<(60-'Main Data Entry'!$D$23),(($C125-60+'Main Data Entry'!$D$23)/(60*'Main Data Entry'!$D$22-'Main Data Entry'!$D$23))*(-1)*'Main Data Entry'!$G$21,0)) -> 0 | S125: 59.964 | AB125: 43658.03146 | AE125: 59.98704147 | AF125: 448.4135437
A126: T+5s | B126: 43658.03147 | C126: 59.98867416 | D126: 448.4396973 | P126: ='Main Data Entry'!$G$21 -> 0 | Q126: =IF($C126>(60+'Main Data Entry'!$D$23),(($C126-60-'Main Data Entry'!$D$23)/(60*'Main Data Entry'!$D$22-'Main Data Entry'!$D$23))*(-1)*'Main Data Entry'!$G$21,IF($C126<(60-'Main Data Entry'!$D$23),(($C126-60+'Main Data Entry'!$D$23)/(60*'Main Data Entry'!$D$22-'Main Data Entry'!$D$23))*(-1)*'Main Data Entry'!$G$21,0)) -> 0 | S126: 59.964 | AB126: 43658.03147 | AC126: 59.98867416 | AD126: 448.4396973 | AE126: 59.98867416 | AF126: 448.4396973
A127: T+6s | B127: 43658.03148 | C127: 59.98867416 | D127: 448.4396973 | P127: ='Main Data Entry'!$G$21 -> 0 | Q127: =IF($C127>(60+'Main Data Entry'!$D$23),(($C127-60-'Main Data Entry'!$D$23)/(60*'Main Data Entry'!$D$22-'Main Data Entry'!$D$23))*(-1)*'Main Data Entry'!$G$21,IF($C127<(60-'Main Data Entry'!$D$23),(($C127-60+'Main Data Entry'!$D$23)/(60*'Main Data Entry'!$D$22-'Main Data Entry'!$D$23))*(-1)*'Main Data Entry'!$G$21,0)) -> 0 | S127: 59.964 | AB127: 43658.03148 | AE127: 59.98867416 | AF127: 448.4396973
A128: T+7s | B128: 43658.03149 | C128: 59.98834991 | D128: 448.2620544 | P128: ='Main Data Entry'!$G$21 -> 0 | Q128: =IF($C128>(60+'Main Data Entry'!$D$23),(($C128-60-'Main Data Entry'!$D$23)/(60*'Main Data Entry'!$D$22-'Main Data Entry'!$D$23))*(-1)*'Main Data Entry'!$G$21,IF($C128<(60-'Main Data Entry'!$D$23),(($C128-60+'Main Data Entry'!$D$23)/(60*'Main Data Entry'!$D$22-'Main Data Entry'!$D$23))*(-1)*'Main Data Entry'!$G$21,0)) -> 0 | S128: 59.964 | AB128: 43658.03149 | AC128: 59.98834991 | AD128: 448.2620544 | AE128: 59.98834991 | AF128: 448.2620544
A129: T+8s | B129: 43658.0315 | C129: 59.98834991 | D129: 448.2620544 | P129: ='Main Data Entry'!$G$21 -> 0 | Q129: =IF($C129>(60+'Main Data Entry'!$D$23),(($C129-60-'Main Data Entry'!$D$23)/(60*'Main Data Entry'!$D$22-'Main Data Entry'!$D$23))*(-1)*'Main Data Entry'!$G$21,IF($C129<(60-'Main Data Entry'!$D$23),(($C129-60+'Main Data Entry'!$D$23)/(60*'Main Data Entry'!$D$22-'Main Data Entry'!$D$23))*(-1)*'Main Data Entry'!$G$21,0)) -> 0 | S129: 59.964 | AB129: 43658.0315 | AE129: 59.98834991 | AF129: 448.2620544
A130: T+9s | B130: 43658.03152 | C130: 59.98801804 | D130: 448.2618713 | P130: ='Main Data Entry'!$G$21 -> 0 | Q130: =IF($C130>(60+'Main Data Entry'!$D$23),(($C130-60-'Main Data Entry'!$D$23)/(60*'Main Data Entry'!$D$22-'Main Data Entry'!$D$23))*(-1)*'Main Data Entry'!$G$21,IF($C130<(60-'Main Data Entry'!$D$23),(($C130-60+'Main Data Entry'!$D$23)/(60*'Main Data Entry'!$D$22-'Main Data Entry'!$D$23))*(-1)*'Main Data Entry'!$G$21,0)) -> 0 | S130: 59.964 | AB130: 43658.03152 | AC130: 59.98801804 | AD130: 448.2618713 | AE130: 59.98801804 | AF130: 448.2618713
A131: T+10s | B131: 43658.03153 | C131: 59.98801804 | D131: 448.2618713 | P131: ='Main Data Entry'!$G$21 -> 0 | Q131: =IF($C131>(60+'Main Data Entry'!$D$23),(($C131-60-'Main Data Entry'!$D$23)/(60*'Main Data Entry'!$D$22-'Main Data Entry'!$D$23))*(-1)*'Main Data Entry'!$G$21,IF($C131<(60-'Main Data Entry'!$D$23),(($C131-60+'Main Data Entry'!$D$23)/(60*'Main Data Entry'!$D$22-'Main Data Entry'!$D$23))*(-1)*'Main Data Entry'!$G$21,0)) -> 0 | S131: 59.964 | AB131: 43658.03153 | AE131: 59.98801804 | AF131: 448.2618713
A132: T+11s | B132: 43658.03154 | C132: 59.98768997 | D132: 448.2618713 | P132: ='Main Data Entry'!$G$21 -> 0 | Q132: =IF($C132>(60+'Main Data Entry'!$D$23),(($C132-60-'Main Data Entry'!$D$23)/(60*'Main Data Entry'!$D$22-'Main Data Entry'!$D$23))*(-1)*'Main Data Entry'!$G$21,IF($C132<(60-'Main Data Entry'!$D$23),(($C132-60+'Main Data Entry'!$D$23)/(60*'Main Data Entry'!$D$22-'Main Data Entry'!$D$23))*(-1)*'Main Data Entry'!$G$21,0)) -> 0 | S132: 59.964 | AB132: 43658.03154 | AC132: 59.98768997 | AD132: 448.2618713 | AE132: 59.98768997 | AF132: 448.2618713
A133: T+12s | B133: 43658.03155 | C133: 59.98768997 | D133: 448.2618713 | P133: ='Main Data Entry'!$G$21 -> 0 | Q133: =IF($C133>(60+'Main Data Entry'!$D$23),(($C133-60-'Main Data Entry'!$D$23)/(60*'Main Data Entry'!$D$22-'Main Data Entry'!$D$23))*(-1)*'Main Data Entry'!$G$21,IF($C133<(60-'Main Data Entry'!$D$23),(($C133-60+'Main Data Entry'!$D$23)/(60*'Main Data Entry'!$D$22-'Main Data Entry'!$D$23))*(-1)*'Main Data Entry'!$G$21,0)) -> 0 | S133: 59.964 | AB133: 43658.03155 | AE133: 59.98768997 | AF133: 448.2618713
A134: T+13s | B134: 43658.03156 | C134: 59.98735809 | D134: 448.2618713 | P134: ='Main Data Entry'!$G$21 -> 0 | Q134: =IF($C134>(60+'Main Data Entry'!$D$23),(($C134-60-'Main Data Entry'!$D$23)/(60*'Main Data Entry'!$D$22-'Main Data Entry'!$D$23))*(-1)*'Main Data Entry'!$G$21,IF($C134<(60-'Main Data Entry'!$D$23),(($C134-60+'Main Data Entry'!$D$23)/(60*'Main Data Entry'!$D$22-'Main Data Entry'!$D$23))*(-1)*'Main Data Entry'!$G$21,0)) -> 0 | S134: 59.964 | AB134: 43658.03156 | AC134: 59.98735809 | AD134: 448.2618713 | AE134: 59.98735809 | AF134: 448.2618713
A135: T+14s | B135: 43658.03157 | C135: 59.98735809 | D135: 448.2618713 | P135: ='Main Data Entry'!$G$21 -> 0 | Q135: =IF($C135>(60+'Main Data Entry'!$D$23),(($C135-60-'Main Data Entry'!$D$23)/(60*'Main Data Entry'!$D$22-'Main Data Entry'!$D$23))*(-1)*'Main Data Entry'!$G$21,IF($C135<(60-'Main Data Entry'!$D$23),(($C135-60+'Main Data Entry'!$D$23)/(60*'Main Data Entry'!$D$22-'Main Data Entry'!$D$23))*(-1)*'Main Data Entry'!$G$21,0)) -> 0 | S135: 59.964 | AB135: 43658.03157 | AE135: 59.98735809 | AF135: 448.2618713
A136: T+15s | B136: 43658.03159 | C136: 59.96912766 | D136: 448.7764282 | P136: ='Main Data Entry'!$G$21 -> 0 | Q136: =IF($C136>(60+'Main Data Entry'!$D$23),(($C136-60-'Main Data Entry'!$D$23)/(60*'Main Data Entry'!$D$22-'Main Data Entry'!$D$23))*(-1)*'Main Data Entry'!$G$21,IF($C136<(60-'Main Data Entry'!$D$23),(($C136-60+'Main Data Entry'!$D$23)/(60*'Main Data Entry'!$D$22-'Main Data Entry'!$D$23))*(-1)*'Main Data Entry'!$G$21,0)) -> 0 | S136: 59.964 | AB136: 43658.03159 | AC136: 59.96912766 | AD136: 448.7764282 | AE136: 59.96912766 | AF136: 448.7764282
A137: T+16s | B137: 43658.0316 | C137: 59.96912766 | D137: 448.7764282 | P137: ='Main Data Entry'!$G$21 -> 0 | Q137: =IF($C137>(60+'Main Data Entry'!$D$23),(($C137-60-'Main Data Entry'!$D$23)/(60*'Main Data Entry'!$D$22-'Main Data Entry'!$D$23))*(-1)*'Main Data Entry'!$G$21,IF($C137<(60-'Main Data Entry'!$D$23),(($C137-60+'Main Data Entry'!$D$23)/(60*'Main Data Entry'!$D$22-'Main Data Entry'!$D$23))*(-1)*'Main Data Entry'!$G$21,0)) -> 0 | S137: 59.964 | AB137: 43658.0316 | AE137: 59.96912766 | AF137: 448.7764282
A138: T+17s | B138: 43658.03161 | C138: 59.95088959 | D138: 450.3499756 | P138: ='Main Data Entry'!$G$21 -> 0 | Q138: =IF($C138>(60+'Main Data Entry'!$D$23),(($C138-60-'Main Data Entry'!$D$23)/(60*'Main Data Entry'!$D$22-'Main Data Entry'!$D$23))*(-1)*'Main Data Entry'!$G$21,IF($C138<(60-'Main Data Entry'!$D$23),(($C138-60+'Main Data Entry'!$D$23)/(60*'Main Data Entry'!$D$22-'Main Data Entry'!$D$23))*(-1)*'Main Data Entry'!$G$21,0)) -> 0 | S138: 59.964 | AB138: =AB137+TIME(0,0,1) -> 43658.03161 | AC138: 59.95088959 | AD138: 450.3499756 | AE138: 59.95088959 | AF138: 450.3499756
A139: T+18s | B139: 43658.03162 | C139: 59.95088959 | D139: 450.3499756 | P139: ='Main Data Entry'!$G$21 -> 0 | Q139: =IF($C139>(60+'Main Data Entry'!$D$23),(($C139-60-'Main Data Entry'!$D$23)/(60*'Main Data Entry'!$D$22-'Main Data Entry'!$D$23))*(-1)*'Main Data Entry'!$G$21,IF($C139<(60-'Main Data Entry'!$D$23),(($C139-60+'Main Data Entry'!$D$23)/(60*'Main Data Entry'!$D$22-'Main Data Entry'!$D$23))*(-1)*'Main Data Entry'!$G$21,0)) -> 0 | S139: 59.964 | AB139: 43658.03162 | AE139: 59.95088959 | AF139: 450.3499756
A140: T+19s | B140: 43658.03163 | C140: 59.94473648 | D140: 453.3482666 | P140: ='Main Data Entry'!$G$21 -> 0 | Q140: =IF($C140>(60+'Main Data Entry'!$D$23),(($C140-60-'Main Data Entry'!$D$23)/(60*'Main Data Entry'!$D$22-'Main Data Entry'!$D$23))*(-1)*'Main Data Entry'!$G$21,IF($C140<(60-'Main Data Entry'!$D$23),(($C140-60+'Main Data Entry'!$D$23)/(60*'Main Data Entry'!$D$22-'Main Data Entry'!$D$23))*(-1)*'Main Data Entry'!$G$21,0)) -> 0 | S140: 59.964 | AB140: 43658.03163 | AC140: 59.94473648 | AD140: 453.3482666 | AE140: =IF($AC140="",$AE139,IF($AC140<>$AE139,$AC140,$AE139)) -> 59.94473648 | AF140: =IF($AD140="",$AF139,IF($AD140<>$AF139,$AD140,$AF139)) -> 453.3482666
A141: T+20s | B141: 43658.03164 | C141: 59.94473648 | D141: 453.3482666 | E141: =AVERAGE($C$141:$C$173) -> 59.95075746 | F141: =AVERAGE($D$141:$D$173) -> 454.299457 | I141: =E141 -> 59.95075746 | K141: =F141 -> 454.299457 | L141: =P$12+P$17 -> 454.5211751 | M141: =P$12+P$21 -> 448.1994751 | P141: ='Main Data Entry'!$G$21 -> 0 | Q141: =IF($C141>(60+'Main Data Entry'!$D$23),(($C141-60-'Main Data Entry'!$D$23)/(60*'Main Data Entry'!$D$22-'Main Data Entry'!$D$23))*(-1)*'Main Data Entry'!$G$21,IF($C141<(60-'Main Data Entry'!$D$23),(($C141-60+'Main Data Entry'!$D$23)/(60*'Main Data Entry'!$D$22-'Main Data Entry'!$D$23))*(-1)*'Main Data Entry'!$G$21,0)) -> 0 | R141: =AVERAGE($Q$141:$Q$173) -> 0 | S141: 59.964 | AB141: 43658.03164 | AE141: 59.94473648 | AF141: 453.3482666
A142: T+21s | B142: 43658.03166 | C142: 59.94508362 | D142: 453.3482666 | E142: 59.95075746 | F142: 454.299457 | I142: 59.95075746 | K142: 454.299457 | L142: =P$12+P$17 -> 454.5211751 | M142: =P$12+P$21 -> 448.1994751 | P142: ='Main Data Entry'!$G$21 -> 0 | Q142: =IF($C142>(60+'Main Data Entry'!$D$23),(($C142-60-'Main Data Entry'!$D$23)/(60*'Main Data Entry'!$D$22-'Main Data Entry'!$D$23))*(-1)*'Main Data Entry'!$G$21,IF($C142<(60-'Main Data Entry'!$D$23),(($C142-60+'Main Data Entry'!$D$23)/(60*'Main Data Entry'!$D$22-'Main Data Entry'!$D$23))*(-1)*'Main Data Entry'!$G$21,0)) -> 0 | R142: 0 | S142: 59.964 | AB142: 43658.03166 | AC142: 59.94508362 | AD142: 453.3482666 | AE142: 59.94508362 | AF142: 453.3482666
A143: T+22s | B143: 43658.03167 | C143: 59.94508362 | D143: 453.3482666 | E143: 59.95075746 | F143: 454.299457 | I143: 59.95075746 | K143: 454.299457 | L143: 454.5211751 | M143: 448.1994751 | P143: ='Main Data Entry'!$G$21 -> 0 | Q143: =IF($C143>(60+'Main Data Entry'!$D$23),(($C143-60-'Main Data Entry'!$D$23)/(60*'Main Data Entry'!$D$22-'Main Data Entry'!$D$23))*(-1)*'Main Data Entry'!$G$21,IF($C143<(60-'Main Data Entry'!$D$23),(($C143-60+'Main Data Entry'!$D$23)/(60*'Main Data Entry'!$D$22-'Main Data Entry'!$D$23))*(-1)*'Main Data Entry'!$G$21,0)) -> 0 | R143: 0 | S143: 59.964 | AB143: 43658.03167 | AE143: 59.94508362 | AF143: 453.3482666
A144: T+23s | B144: 43658.03168 | C144: 59.94542694 | D144: 453.3482666 | E144: 59.95075746 | F144: 454.299457 | I144: 59.95075746 | K144: 454.299457 | L144: 454.5211751 | M144: 448.1994751 | P144: ='Main Data Entry'!$G$21 -> 0 | Q144: =IF($C144>(60+'Main Data Entry'!$D$23),(($C144-60-'Main Data Entry'!$D$23)/(60*'Main Data Entry'!$D$22-'Main Data Entry'!$D$23))*(-1)*'Main Data Entry'!$G$21,IF($C144<(60-'Main Data Entry'!$D$23),(($C144-60+'Main Data Entry'!$D$23)/(60*'Main Data Entry'!$D$22-'Main Data Entry'!$D$23))*(-1)*'Main Data Entry'!$G$21,0)) -> 0 | R144: 0 | S144: 59.964 | AB144: 43658.03168 | AC144: 59.94542694 | AD144: 453.3482666 | AE144: 59.94542694 | AF144: 453.3482666
A145: T+24s | B145: 43658.03169 | C145: =OFFSET($AE145,-$B$1,0) -> 59.94542694 | D145: =OFFSET($AF145,-$B$1,0) -> 453.3482666 | E145: 59.95075746 | F145: 454.299457 | I145: 59.95075746 | K145: 454.299457 | L145: 454.5211751 | M145: 448.1994751 | P145: ='Main Data Entry'!$G$21 -> 0 | Q145: =IF($C145>(60+'Main Data Entry'!$D$23),(($C145-60-'Main Data Entry'!$D$23)/(60*'Main Data Entry'!$D$22-'Main Data Entry'!$D$23))*(-1)*'Main Data Entry'!$G$21,IF($C145<(60-'Main Data Entry'!$D$23),(($C145-60+'Main Data Entry'!$D$23)/(60*'Main Data Entry'!$D$22-'Main Data Entry'!$D$23))*(-1)*'Main Data Entry'!$G$21,0)) -> 0 | R145: 0 | S145: =Grid_Nominal_Frequency-Expected_Deadband_Setting -> 59.964 | AB145: 43658.03169 | AE145: 59.94542694 | AF145: 453.3482666
A146: T+25s | B146: 43658.0317 | C146: 59.94577026 | D146: 454.1004333 | E146: 59.95075746 | F146: 454.299457 | I146: 59.95075746 | K146: 454.299457 | L146: 454.5211751 | M146: 448.1994751 | P146: ='Main Data Entry'!$G$21 -> 0 | Q146: =IF($C146>(60+'Main Data Entry'!$D$23),(($C146-60-'Main Data Entry'!$D$23)/(60*'Main Data Entry'!$D$22-'Main Data Entry'!$D$23))*(-1)*'Main Data Entry'!$G$21,IF($C146<(60-'Main Data Entry'!$D$23),(($C146-60+'Main Data Entry'!$D$23)/(60*'Main Data Entry'!$D$22-'Main Data Entry'!$D$23))*(-1)*'Main Data Entry'!$G$21,0)) -> 0 | R146: 0 | S146: 59.964 | AB146: 43658.0317 | AC146: 59.94577026 | AD146: 454.1004333 | AE146: 59.94577026 | AF146: 454.1004333
A147: T+26s | B147: 43658.03171 | C147: 59.94577026 | D147: 454.1004333 | E147: 59.95075746 | F147: 454.299457 | I147: 59.95075746 | K147: 454.299457 | L147: 454.5211751 | M147: 448.1994751 | P147: ='Main Data Entry'!$G$21 -> 0 | Q147: =IF($C147>(60+'Main Data Entry'!$D$23),(($C147-60-'Main Data Entry'!$D$23)/(60*'Main Data Entry'!$D$22-'Main Data Entry'!$D$23))*(-1)*'Main Data Entry'!$G$21,IF($C147<(60-'Main Data Entry'!$D$23),(($C147-60+'Main Data Entry'!$D$23)/(60*'Main Data Entry'!$D$22-'Main Data Entry'!$D$23))*(-1)*'Main Data Entry'!$G$21,0)) -> 0 | R147: 0 | S147: 59.964 | AB147: 43658.03171 | AE147: 59.94577026 | AF147: 454.1004333
A148: T+27s | B148: 43658.03172 | C148: 59.9461174 | D148: 454.8529968 | E148: 59.95075746 | F148: 454.299457 | I148: 59.95075746 | K148: 454.299457 | L148: 454.5211751 | M148: 448.1994751 | P148: ='Main Data Entry'!$G$21 -> 0 | Q148: =IF($C148>(60+'Main Data Entry'!$D$23),(($C148-60-'Main Data Entry'!$D$23)/(60*'Main Data Entry'!$D$22-'Main Data Entry'!$D$23))*(-1)*'Main Data Entry'!$G$21,IF($C148<(60-'Main Data Entry'!$D$23),(($C148-60+'Main Data Entry'!$D$23)/(60*'Main Data Entry'!$D$22-'Main Data Entry'!$D$23))*(-1)*'Main Data Entry'!$G$21,0)) -> 0 | R148: 0 | S148: 59.964 | AB148: 43658.03172 | AC148: 59.9461174 | AD148: 454.8529968 | AE148: 59.9461174 | AF148: 454.8529968
A149: T+28s | B149: 43658.03174 | C149: 59.9461174 | D149: 454.8529968 | E149: 59.95075746 | F149: 454.299457 | I149: 59.95075746 | K149: 454.299457 | L149: 454.5211751 | M149: 448.1994751 | P149: ='Main Data Entry'!$G$21 -> 0 | Q149: =IF($C149>(60+'Main Data Entry'!$D$23),(($C149-60-'Main Data Entry'!$D$23)/(60*'Main Data Entry'!$D$22-'Main Data Entry'!$D$23))*(-1)*'Main Data Entry'!$G$21,IF($C149<(60-'Main Data Entry'!$D$23),(($C149-60+'Main Data Entry'!$D$23)/(60*'Main Data Entry'!$D$22-'Main Data Entry'!$D$23))*(-1)*'Main Data Entry'!$G$21,0)) -> 0 | R149: 0 | S149: 59.964 | AB149: 43658.03174 | AE149: 59.9461174 | AF149: 454.8529968
A150: T+29s | B150: 43658.03175 | C150: 59.94646072 | D150: 454.8529968 | E150: 59.95075746 | F150: 454.299457 | I150: 59.95075746 | K150: 454.299457 | L150: 454.5211751 | M150: 448.1994751 | P150: ='Main Data Entry'!$G$21 -> 0 | Q150: =IF($C150>(60+'Main Data Entry'!$D$23),(($C150-60-'Main Data Entry'!$D$23)/(60*'Main Data Entry'!$D$22-'Main Data Entry'!$D$23))*(-1)*'Main Data Entry'!$G$21,IF($C150<(60-'Main Data Entry'!$D$23),(($C150-60+'Main Data Entry'!$D$23)/(60*'Main Data Entry'!$D$22-'Main Data Entry'!$D$23))*(-1)*'Main Data Entry'!$G$21,0)) -> 0 | R150: 0 | S150: 59.964 | AB150: 43658.03175 | AC150: 59.94646072 | AD150: 454.8529968 | AE150: 59.94646072 | AF150: 454.8529968
A151: T+30s | B151: 43658.03176 | C151: 59.94646072 | D151: 454.8529968 | E151: 59.95075746 | F151: 454.299457 | I151: 59.95075746 | K151: 454.299457 | L151: 454.5211751 | M151: 448.1994751 | P151: ='Main Data Entry'!$G$21 -> 0 | Q151: =IF($C151>(60+'Main Data Entry'!$D$23),(($C151-60-'Main Data Entry'!$D$23)/(60*'Main Data Entry'!$D$22-'Main Data Entry'!$D$23))*(-1)*'Main Data Entry'!$G$21,IF($C151<(60-'Main Data Entry'!$D$23),(($C151-60+'Main Data Entry'!$D$23)/(60*'Main Data Entry'!$D$22-'Main Data Entry'!$D$23))*(-1)*'Main Data Entry'!$G$21,0)) -> 0 | R151: 0 | S151: 59.964 | AB151: 43658.03176 | AE151: 59.94646072 | AF151: 454.8529968
A152: T+31s | B152: 43658.03177 | C152: 59.94680786 | D152: 455.1813354 | E152: 59.95075746 | F152: 454.299457 | I152: 59.95075746 | K152: 454.299457 | L152: 454.5211751 | M152: 448.1994751 | P152: ='Main Data Entry'!$G$21 -> 0 | Q152: =IF($C152>(60+'Main Data Entry'!$D$23),(($C152-60-'Main Data Entry'!$D$23)/(60*'Main Data Entry'!$D$22-'Main Data Entry'!$D$23))*(-1)*'Main Data Entry'!$G$21,IF($C152<(60-'Main Data Entry'!$D$23),(($C152-60+'Main Data Entry'!$D$23)/(60*'Main Data Entry'!$D$22-'Main Data Entry'!$D$23))*(-1)*'Main Data Entry'!$G$21,0)) -> 0 | R152: 0 | S152: 59.964 | AB152: 43658.03177 | AC152: 59.94680786 | AD152: 455.1813354 | AE152: 59.94680786 | AF152: 455.1813354
A153: T+32s | B153: 43658.03178 | C153: 59.94680786 | D153: 455.1813354 | E153: 59.95075746 | F153: 454.299457 | I153: 59.95075746 | K153: 454.299457 | L153: 454.5211751 | M153: 448.1994751 | P153: ='Main Data Entry'!$G$21 -> 0 | Q153: =IF($C153>(60+'Main Data Entry'!$D$23),(($C153-60-'Main Data Entry'!$D$23)/(60*'Main Data Entry'!$D$22-'Main Data Entry'!$D$23))*(-1)*'Main Data Entry'!$G$21,IF($C153<(60-'Main Data Entry'!$D$23),(($C153-60+'Main Data Entry'!$D$23)/(60*'Main Data Entry'!$D$22-'Main Data Entry'!$D$23))*(-1)*'Main Data Entry'!$G$21,0)) -> 0 | R153: 0 | S153: 59.964 | AB153: 43658.03178 | AE153: 59.94680786 | AF153: 455.1813354
A154: T+33s | B154: 43658.03179 | C154: 59.94715118 | D154: 455.1824951 | E154: 59.95075746 | F154: 454.299457 | I154: 59.95075746 | K154: 454.299457 | L154: 454.5211751 | M154: 448.1994751 | P154: ='Main Data Entry'!$G$21 -> 0 | Q154: =IF($C154>(60+'Main Data Entry'!$D$23),(($C154-60-'Main Data Entry'!$D$23)/(60*'Main Data Entry'!$D$22-'Main Data Entry'!$D$23))*(-1)*'Main Data Entry'!$G$21,IF($C154<(60-'Main Data Entry'!$D$23),(($C154-60+'Main Data Entry'!$D$23)/(60*'Main Data Entry'!$D$22-'Main Data Entry'!$D$23))*(-1)*'Main Data Entry'!$G$21,0)) -> 0 | R154: 0 | S154: 59.964 | AB154: =AB153+TIME(0,0,1) -> 43658.03179 | AC154: 59.94715118 | AD154: 455.1824951 | AE154: 59.94715118 | AF154: 455.1824951
A155: T+34s | B155: 43658.03181 | C155: 59.94715118 | D155: 455.1824951 | E155: 59.95075746 | F155: 454.299457 | I155: 59.95075746 | K155: 454.299457 | L155: 454.5211751 | M155: 448.1994751 | P155: ='Main Data Entry'!$G$21 -> 0 | Q155: =IF($C155>(60+'Main Data Entry'!$D$23),(($C155-60-'Main Data Entry'!$D$23)/(60*'Main Data Entry'!$D$22-'Main Data Entry'!$D$23))*(-1)*'Main Data Entry'!$G$21,IF($C155<(60-'Main Data Entry'!$D$23),(($C155-60+'Main Data Entry'!$D$23)/(60*'Main Data Entry'!$D$22-'Main Data Entry'!$D$23))*(-1)*'Main Data Entry'!$G$21,0)) -> 0 | R155: 0 | S155: 59.964 | AB155: 43658.03181 | AE155: 59.94715118 | AF155: 455.1824951
A156: T+35s | B156: 43658.03182 | C156: 59.94749832 | D156: 455.1824951 | E156: 59.95075746 | F156: 454.299457 | I156: 59.95075746 | K156: 454.299457 | L156: 454.5211751 | M156: 448.1994751 | P156: ='Main Data Entry'!$G$21 -> 0 | Q156: =IF($C156>(60+'Main Data Entry'!$D$23),(($C156-60-'Main Data Entry'!$D$23)/(60*'Main Data Entry'!$D$22-'Main Data Entry'!$D$23))*(-1)*'Main Data Entry'!$G$21,IF($C156<(60-'Main Data Entry'!$D$23),(($C156-60+'Main Data Entry'!$D$23)/(60*'Main Data Entry'!$D$22-'Main Data Entry'!$D$23))*(-1)*'Main Data Entry'!$G$21,0)) -> 0 | R156: 0 | S156: 59.964 | AB156: 43658.03182 | AC156: 59.94749832 | AD156: 455.1824951 | AE156: 59.94749832 | AF156: 455.1824951
A157: T+36s | B157: 43658.03183 | C157: 59.94749832 | D157: 455.1824951 | E157: 59.95075746 | F157: 454.299457 | I157: 59.95075746 | K157: 454.299457 | L157: 454.5211751 | M157: 448.1994751 | P157: ='Main Data Entry'!$G$21 -> 0 | Q157: =IF($C157>(60+'Main Data Entry'!$D$23),(($C157-60-'Main Data Entry'!$D$23)/(60*'Main Data Entry'!$D$22-'Main Data Entry'!$D$23))*(-1)*'Main Data Entry'!$G$21,IF($C157<(60-'Main Data Entry'!$D$23),(($C157-60+'Main Data Entry'!$D$23)/(60*'Main Data Entry'!$D$22-'Main Data Entry'!$D$23))*(-1)*'Main Data Entry'!$G$21,0)) -> 0 | R157: 0 | S157: 59.964 | AB157: 43658.03183 | AE157: 59.94749832 | AF157: 455.1824951
A158: T+37s | B158: 43658.03184 | C158: 59.95031357 | D158: 454.8201904 | E158: 59.95075746 | F158: 454.299457 | I158: 59.95075746 | K158: 454.299457 | L158: 454.5211751 | M158: 448.1994751 | P158: ='Main Data Entry'!$G$21 -> 0 | Q158: =IF($C158>(60+'Main Data Entry'!$D$23),(($C158-60-'Main Data Entry'!$D$23)/(60*'Main Data Entry'!$D$22-'Main Data Entry'!$D$23))*(-1)*'Main Data Entry'!$G$21,IF($C158<(60-'Main Data Entry'!$D$23),(($C158-60+'Main Data Entry'!$D$23)/(60*'Main Data Entry'!$D$22-'Main Data Entry'!$D$23))*(-1)*'Main Data Entry'!$G$21,0)) -> 0 | R158: 0 | S158: 59.964 | AB158: 43658.03184 | AC158: 59.95031357 | AD158: 454.8201904 | AE158: 59.95031357 | AF158: 454.8201904
A159: T+38s | B159: 43658.03185 | C159: 59.95031357 | D159: 454.8201904 | E159: 59.95075746 | F159: 454.299457 | I159: 59.95075746 | K159: 454.299457 | L159: 454.5211751 | M159: 448.1994751 | P159: ='Main Data Entry'!$G$21 -> 0 | Q159: =IF($C159>(60+'Main Data Entry'!$D$23),(($C159-60-'Main Data Entry'!$D$23)/(60*'Main Data Entry'!$D$22-'Main Data Entry'!$D$23))*(-1)*'Main Data Entry'!$G$21,IF($C159<(60-'Main Data Entry'!$D$23),(($C159-60+'Main Data Entry'!$D$23)/(60*'Main Data Entry'!$D$22-'Main Data Entry'!$D$23))*(-1)*'Main Data Entry'!$G$21,0)) -> 0 | R159: 0 | S159: 59.964 | AB159: 43658.03185 | AE159: 59.95031357 | AF159: 454.8201904
A160: T+39s | B160: 43658.03186 | C160: 59.95312881 | D160: 454.8626709 | E160: 59.95075746 | F160: 454.299457 | I160: 59.95075746 | K160: 454.299457 | L160: 454.5211751 | M160: 448.1994751 | P160: ='Main Data Entry'!$G$21 -> 0 | Q160: =IF($C160>(60+'Main Data Entry'!$D$23),(($C160-60-'Main Data Entry'!$D$23)/(60*'Main Data Entry'!$D$22-'Main Data Entry'!$D$23))*(-1)*'Main Data Entry'!$G$21,IF($C160<(60-'Main Data Entry'!$D$23),(($C160-60+'Main Data Entry'!$D$23)/(60*'Main Data Entry'!$D$22-'Main Data Entry'!$D$23))*(-1)*'Main Data Entry'!$G$21,0)) -> 0 | R160: 0 | S160: 59.964 | AB160: 43658.03186 | AC160: 59.95312881 | AD160: 454.8626709 | AE160: 59.95312881 | AF160: 454.8626709
A161: T+40s | B161: 43658.03188 | C161: 59.95312881 | D161: 454.8626709 | E161: 59.95075746 | F161: 454.299457 | I161: 59.95075746 | K161: 454.299457 | L161: 454.5211751 | M161: 448.1994751 | P161: ='Main Data Entry'!$G$21 -> 0 | Q161: =IF($C161>(60+'Main Data Entry'!$D$23),(($C161-60-'Main Data Entry'!$D$23)/(60*'Main Data Entry'!$D$22-'Main Data Entry'!$D$23))*(-1)*'Main Data Entry'!$G$21,IF($C161<(60-'Main Data Entry'!$D$23),(($C161-60+'Main Data Entry'!$D$23)/(60*'Main Data Entry'!$D$22-'Main Data Entry'!$D$23))*(-1)*'Main Data Entry'!$G$21,0)) -> 0 | R161: 0 | S161: 59.964 | AB161: 43658.03188 | AE161: 59.95312881 | AF161: 454.8626709
A162: T+41s | B162: 43658.03189 | C162: 59.95313263 | D162: 454.9065857 | E162: 59.95075746 | F162: 454.299457 | I162: 59.95075746 | K162: 454.299457 | L162: 454.5211751 | M162: 448.1994751 | P162: ='Main Data Entry'!$G$21 -> 0 | Q162: =IF($C162>(60+'Main Data Entry'!$D$23),(($C162-60-'Main Data Entry'!$D$23)/(60*'Main Data Entry'!$D$22-'Main Data Entry'!$D$23))*(-1)*'Main Data Entry'!$G$21,IF($C162<(60-'Main Data Entry'!$D$23),(($C162-60+'Main Data Entry'!$D$23)/(60*'Main Data Entry'!$D$22-'Main Data Entry'!$D$23))*(-1)*'Main Data Entry'!$G$21,0)) -> 0 | R162: 0 | S162: 59.964 | AB162: 43658.03189 | AC162: 59.95313263 | AD162: 454.9065857 | AE162: 59.95313263 | AF162: 454.9065857
A163: T+42s | B163: 43658.0319 | C163: 59.95313263 | D163: 454.9065857 | E163: 59.95075746 | F163: 454.299457 | I163: 59.95075746 | K163: 454.299457 | L163: 454.5211751 | M163: 448.1994751 | P163: ='Main Data Entry'!$G$21 -> 0 | Q163: =IF($C163>(60+'Main Data Entry'!$D$23),(($C163-60-'Main Data Entry'!$D$23)/(60*'Main Data Entry'!$D$22-'Main Data Entry'!$D$23))*(-1)*'Main Data Entry'!$G$21,IF($C163<(60-'Main Data Entry'!$D$23),(($C163-60+'Main Data Entry'!$D$23)/(60*'Main Data Entry'!$D$22-'Main Data Entry'!$D$23))*(-1)*'Main Data Entry'!$G$21,0)) -> 0 | R163: 0 | S163: 59.964 | AB163: 43658.0319 | AE163: 59.95313263 | AF163: 454.9065857
A164: T+43s | B164: 43658.03191 | C164: 59.95313263 | D164: 454.95047 | E164: 59.95075746 | F164: 454.299457 | I164: 59.95075746 | K164: 454.299457 | L164: 454.5211751 | M164: 448.1994751 | P164: ='Main Data Entry'!$G$21 -> 0 | Q164: =IF($C164>(60+'Main Data Entry'!$D$23),(($C164-60-'Main Data Entry'!$D$23)/(60*'Main Data Entry'!$D$22-'Main Data Entry'!$D$23))*(-1)*'Main Data Entry'!$G$21,IF($C164<(60-'Main Data Entry'!$D$23),(($C164-60+'Main Data Entry'!$D$23)/(60*'Main Data Entry'!$D$22-'Main Data Entry'!$D$23))*(-1)*'Main Data Entry'!$G$21,0)) -> 0 | R164: 0 | S164: 59.964 | AB164: 43658.03191 | AC164: 59.95313263 | AD164: 454.95047 | AE164: 59.95313263 | AF164: 454.95047
A165: T+44s | B165: 43658.03192 | C165: 59.95313263 | D165: 454.95047 | E165: 59.95075746 | F165: 454.299457 | I165: 59.95075746 | K165: 454.299457 | L165: 454.5211751 | M165: 448.1994751 | P165: ='Main Data Entry'!$G$21 -> 0 | Q165: =IF($C165>(60+'Main Data Entry'!$D$23),(($C165-60-'Main Data Entry'!$D$23)/(60*'Main Data Entry'!$D$22-'Main Data Entry'!$D$23))*(-1)*'Main Data Entry'!$G$21,IF($C165<(60-'Main Data Entry'!$D$23),(($C165-60+'Main Data Entry'!$D$23)/(60*'Main Data Entry'!$D$22-'Main Data Entry'!$D$23))*(-1)*'Main Data Entry'!$G$21,0)) -> 0 | R165: 0 | S165: 59.964 | AB165: 43658.03192 | AE165: 59.95313263 | AF165: 454.95047
A166: T+45s | B166: 43658.03193 | C166: 59.95679855 | D166: 454.0290222 | E166: 59.95075746 | F166: 454.299457 | I166: 59.95075746 | K166: 454.299457 | L166: 454.5211751 | M166: 448.1994751 | P166: ='Main Data Entry'!$G$21 -> 0 | Q166: =IF($C166>(60+'Main Data Entry'!$D$23),(($C166-60-'Main Data Entry'!$D$23)/(60*'Main Data Entry'!$D$22-'Main Data Entry'!$D$23))*(-1)*'Main Data Entry'!$G$21,IF($C166<(60-'Main Data Entry'!$D$23),(($C166-60+'Main Data Entry'!$D$23)/(60*'Main Data Entry'!$D$22-'Main Data Entry'!$D$23))*(-1)*'Main Data Entry'!$G$21,0)) -> 0 | R166: 0 | S166: 59.964 | AB166: 43658.03193 | AC166: 59.95679855 | AD166: 454.0290222 | AE166: 59.95679855 | AF166: 454.0290222
A167: T+46s | B167: 43658.03194 | C167: 59.95679855 | D167: 454.0290222 | E167: 59.95075746 | F167: 454.299457 | I167: 59.95075746 | K167: 454.299457 | L167: 454.5211751 | M167: 448.1994751 | N167: =P$12+P$26 -> 454.0290222 | O167: =P$12+P$31 -> 448.1994751 | P167: ='Main Data Entry'!$G$21 -> 0 | Q167: =IF($C167>(60+'Main Data Entry'!$D$23),(($C167-60-'Main Data Entry'!$D$23)/(60*'Main Data Entry'!$D$22-'Main Data Entry'!$D$23))*(-1)*'Main Data Entry'!$G$21,IF($C167<(60-'Main Data Entry'!$D$23),(($C167-60+'Main Data Entry'!$D$23)/(60*'Main Data Entry'!$D$22-'Main Data Entry'!$D$23))*(-1)*'Main Data Entry'!$G$21,0)) -> 0 | R167: 0 | S167: 59.964 | AB167: 43658.03194 | AE167: 59.95679855 | AF167: 454.0290222
A168: T+47s | B168: 43658.03196 | C168: 59.96046829 | D168: 453.1070862 | E168: 59.95075746 | F168: 454.299457 | I168: 59.95075746 | K168: 454.299457 | L168: 454.5211751 | M168: 448.1994751 | N168: =P$12+P$26 -> 454.0290222 | O168: =P$12+P$31 -> 448.1994751 | P168: ='Main Data Entry'!$G$21 -> 0 | Q168: =IF($C168>(60+'Main Data Entry'!$D$23),(($C168-60-'Main Data Entry'!$D$23)/(60*'Main Data Entry'!$D$22-'Main Data Entry'!$D$23))*(-1)*'Main Data Entry'!$G$21,IF($C168<(60-'Main Data Entry'!$D$23),(($C168-60+'Main Data Entry'!$D$23)/(60*'Main Data Entry'!$D$22-'Main Data Entry'!$D$23))*(-1)*'Main Data Entry'!$G$21,0)) -> 0 | R168: 0 | S168: 59.964 | AB168: 43658.03196 | AC168: 59.96046829 | AD168: 453.1070862 | AE168: 59.96046829 | AF168: 453.1070862
A169: T+48s | B169: 43658.03197 | C169: 59.96046829 | D169: 453.1070862 | E169: 59.95075746 | F169: 454.299457 | I169: 59.95075746 | K169: 454.299457 | L169: 454.5211751 | M169: 448.1994751 | N169: 454.0290222 | O169: 448.1994751 | P169: ='Main Data Entry'!$G$21 -> 0 | Q169: =IF($C169>(60+'Main Data Entry'!$D$23),(($C169-60-'Main Data Entry'!$D$23)/(60*'Main Data Entry'!$D$22-'Main Data Entry'!$D$23))*(-1)*'Main Data Entry'!$G$21,IF($C169<(60-'Main Data Entry'!$D$23),(($C169-60+'Main Data Entry'!$D$23)/(60*'Main Data Entry'!$D$22-'Main Data Entry'!$D$23))*(-1)*'Main Data Entry'!$G$21,0)) -> 0 | R169: 0 | S169: 59.964 | AB169: 43658.03197 | AE169: 59.96046829 | AF169: 453.1070862
A170: T+49s | B170: 43658.03198 | C170: 59.96047974 | D170: 453.1043091 | E170: 59.95075746 | F170: 454.299457 | I170: 59.95075746 | K170: 454.299457 | L170: 454.5211751 | M170: 448.1994751 | N170: 454.0290222 | O170: 448.1994751 | P170: ='Main Data Entry'!$G$21 -> 0 | Q170: =IF($C170>(60+'Main Data Entry'!$D$23),(($C170-60-'Main Data Entry'!$D$23)/(60*'Main Data Entry'!$D$22-'Main Data Entry'!$D$23))*(-1)*'Main Data Entry'!$G$21,IF($C170<(60-'Main Data Entry'!$D$23),(($C170-60+'Main Data Entry'!$D$23)/(60*'Main Data Entry'!$D$22-'Main Data Entry'!$D$23))*(-1)*'Main Data Entry'!$G$21,0)) -> 0 | R170: 0 | S170: 59.964 | AB170: =AB169+TIME(0,0,1) -> 43658.03198 | AC170: 59.96047974 | AD170: 453.1043091 | AE170: 59.96047974 | AF170: 453.1043091
A171: T+50s | B171: 43658.03199 | C171: 59.96047974 | D171: 453.1043091 | E171: 59.95075746 | F171: 454.299457 | I171: 59.95075746 | K171: 454.299457 | L171: 454.5211751 | M171: 448.1994751 | N171: 454.0290222 | O171: 448.1994751 | P171: ='Main Data Entry'!$G$21 -> 0 | Q171: =IF($C171>(60+'Main Data Entry'!$D$23),(($C171-60-'Main Data Entry'!$D$23)/(60*'Main Data Entry'!$D$22-'Main Data Entry'!$D$23))*(-1)*'Main Data Entry'!$G$21,IF($C171<(60-'Main Data Entry'!$D$23),(($C171-60+'Main Data Entry'!$D$23)/(60*'Main Data Entry'!$D$22-'Main Data Entry'!$D$23))*(-1)*'Main Data Entry'!$G$21,0)) -> 0 | R171: 0 | S171: 59.964 | AB171: 43658.03199 | AE171: 59.96047974 | AF171: 453.1043091
A172: T+51s | B172: 43658.032 | C172: 59.95735931 | D172: 453.4372864 | E172: 59.95075746 | F172: 454.299457 | I172: 59.95075746 | K172: 454.299457 | L172: 454.5211751 | M172: 448.1994751 | N172: 454.0290222 | O172: 448.1994751 | P172: ='Main Data Entry'!$G$21 -> 0 | Q172: =IF($C172>(60+'Main Data Entry'!$D$23),(($C172-60-'Main Data Entry'!$D$23)/(60*'Main Data Entry'!$D$22-'Main Data Entry'!$D$23))*(-1)*'Main Data Entry'!$G$21,IF($C172<(60-'Main Data Entry'!$D$23),(($C172-60+'Main Data Entry'!$D$23)/(60*'Main Data Entry'!$D$22-'Main Data Entry'!$D$23))*(-1)*'Main Data Entry'!$G$21,0)) -> 0 | R172: 0 | S172: 59.964 | AB172: 43658.032 | AC172: 59.95735931 | AD172: 453.4372864 | AE172: 59.95735931 | AF172: 453.4372864
A173: T+52s | B173: 43658.03201 | C173: 59.95735931 | D173: 453.4372864 | E173: 59.95075746 | F173: 454.299457 | I173: 59.95075746 | K173: 454.299457 | L173: 454.5211751 | M173: 448.1994751 | N173: 454.0290222 | O173: 448.1994751 | P173: ='Main Data Entry'!$G$21 -> 0 | Q173: =IF($C173>(60+'Main Data Entry'!$D$23),(($C173-60-'Main Data Entry'!$D$23)/(60*'Main Data Entry'!$D$22-'Main Data Entry'!$D$23))*(-1)*'Main Data Entry'!$G$21,IF($C173<(60-'Main Data Entry'!$D$23),(($C173-60+'Main Data Entry'!$D$23)/(60*'Main Data Entry'!$D$22-'Main Data Entry'!$D$23))*(-1)*'Main Data Entry'!$G$21,0)) -> 0 | R173: 0 | S173: 59.964 | AB173: 43658.03201 | AE173: 59.95735931 | AF173: 453.4372864
A174: T+53s | B174: 43658.03203 | C174: 59.95735168 | D174: 453.4162903 | N174: 454.0290222 | O174: 448.1994751 | P174: ='Main Data Entry'!$G$21 -> 0 | Q174: =IF($C174>(60+'Main Data Entry'!$D$23),(($C174-60-'Main Data Entry'!$D$23)/(60*'Main Data Entry'!$D$22-'Main Data Entry'!$D$23))*(-1)*'Main Data Entry'!$G$21,IF($C174<(60-'Main Data Entry'!$D$23),(($C174-60+'Main Data Entry'!$D$23)/(60*'Main Data Entry'!$D$22-'Main Data Entry'!$D$23))*(-1)*'Main Data Entry'!$G$21,0)) -> 0 | S174: 59.964 | AB174: 43658.03203 | AC174: 59.95735168 | AD174: 453.4162903 | AE174: 59.95735168 | AF174: 453.4162903
A175: T+54s | B175: 43658.03204 | C175: 59.95735168 | D175: 453.4162903 | N175: 454.0290222 | O175: 448.1994751 | P175: ='Main Data Entry'!$G$21 -> 0 | Q175: =IF($C175>(60+'Main Data Entry'!$D$23),(($C175-60-'Main Data Entry'!$D$23)/(60*'Main Data Entry'!$D$22-'Main Data Entry'!$D$23))*(-1)*'Main Data Entry'!$G$21,IF($C175<(60-'Main Data Entry'!$D$23),(($C175-60+'Main Data Entry'!$D$23)/(60*'Main Data Entry'!$D$22-'Main Data Entry'!$D$23))*(-1)*'Main Data Entry'!$G$21,0)) -> 0 | S175: 59.964 | AB175: 43658.03204 | AE175: 59.95735168 | AF175: 453.4162903
A176: T+55s | B176: 43658.03205 | C176: 59.95735168 | D176: 453.3941956 | N176: 454.0290222 | O176: 448.1994751 | P176: ='Main Data Entry'!$G$21 -> 0 | Q176: =IF($C176>(60+'Main Data Entry'!$D$23),(($C176-60-'Main Data Entry'!$D$23)/(60*'Main Data Entry'!$D$22-'Main Data Entry'!$D$23))*(-1)*'Main Data Entry'!$G$21,IF($C176<(60-'Main Data Entry'!$D$23),(($C176-60+'Main Data Entry'!$D$23)/(60*'Main Data Entry'!$D$22-'Main Data Entry'!$D$23))*(-1)*'Main Data Entry'!$G$21,0)) -> 0 | S176: 59.964 | AB176: 43658.03205 | AC176: 59.95735168 | AD176: 453.3941956 | AE176: 59.95735168 | AF176: 453.3941956
A177: T+56s | B177: 43658.03206 | C177: =OFFSET($AE177,-$B$1,0) -> 59.95735168 | D177: =OFFSET($AF177,-$B$1,0) -> 453.3941956 | N177: 454.0290222 | O177: 448.1994751 | P177: ='Main Data Entry'!$G$21 -> 0 | Q177: =IF($C177>(60+'Main Data Entry'!$D$23),(($C177-60-'Main Data Entry'!$D$23)/(60*'Main Data Entry'!$D$22-'Main Data Entry'!$D$23))*(-1)*'Main Data Entry'!$G$21,IF($C177<(60-'Main Data Entry'!$D$23),(($C177-60+'Main Data Entry'!$D$23)/(60*'Main Data Entry'!$D$22-'Main Data Entry'!$D$23))*(-1)*'Main Data Entry'!$G$21,0)) -> 0 | S177: =Grid_Nominal_Frequency-Expected_Deadband_Setting -> 59.964 | AB177: 43658.03206 | AE177: 59.95735168 | AF177: 453.3941956
A178: T+57s | B178: 43658.03207 | C178: 59.95886993 | D178: 453.3721008 | N178: 454.0290222 | O178: 448.1994751 | P178: ='Main Data Entry'!$G$21 -> 0 | Q178: =IF($C178>(60+'Main Data Entry'!$D$23),(($C178-60-'Main Data Entry'!$D$23)/(60*'Main Data Entry'!$D$22-'Main Data Entry'!$D$23))*(-1)*'Main Data Entry'!$G$21,IF($C178<(60-'Main Data Entry'!$D$23),(($C178-60+'Main Data Entry'!$D$23)/(60*'Main Data Entry'!$D$22-'Main Data Entry'!$D$23))*(-1)*'Main Data Entry'!$G$21,0)) -> 0 | S178: 59.964 | AB178: 43658.03207 | AC178: 59.95886993 | AD178: 453.3721008 | AE178: 59.95886993 | AF178: 453.3721008
A179: T+58s | B179: 43658.03208 | C179: 59.95886993 | D179: 453.3721008 | N179: 454.0290222 | O179: 448.1994751 | P179: ='Main Data Entry'!$G$21 -> 0 | Q179: =IF($C179>(60+'Main Data Entry'!$D$23),(($C179-60-'Main Data Entry'!$D$23)/(60*'Main Data Entry'!$D$22-'Main Data Entry'!$D$23))*(-1)*'Main Data Entry'!$G$21,IF($C179<(60-'Main Data Entry'!$D$23),(($C179-60+'Main Data Entry'!$D$23)/(60*'Main Data Entry'!$D$22-'Main Data Entry'!$D$23))*(-1)*'Main Data Entry'!$G$21,0)) -> 0 | S179: 59.964 | AB179: 43658.03208 | AE179: 59.95886993 | AF179: 453.3721008
A180: T+59s | B180: 43658.03209 | C180: 59.95895004 | D180: 453.3500366 | N180: 454.0290222 | O180: 448.1994751 | P180: ='Main Data Entry'!$G$21 -> 0 | Q180: =IF($C180>(60+'Main Data Entry'!$D$23),(($C180-60-'Main Data Entry'!$D$23)/(60*'Main Data Entry'!$D$22-'Main Data Entry'!$D$23))*(-1)*'Main Data Entry'!$G$21,IF($C180<(60-'Main Data Entry'!$D$23),(($C180-60+'Main Data Entry'!$D$23)/(60*'Main Data Entry'!$D$22-'Main Data Entry'!$D$23))*(-1)*'Main Data Entry'!$G$21,0)) -> 0 | S180: 59.964 | AB180: 43658.03209 | AC180: 59.95895004 | AD180: 453.3500366 | AE180: 59.95895004 | AF180: 453.3500366
A181: T+60s | B181: 43658.03211 | C181: 59.95895004 | D181: 453.3500366 | N181: 454.0290222 | O181: 448.1994751 | P181: ='Main Data Entry'!$G$21 -> 0 | Q181: =IF($C181>(60+'Main Data Entry'!$D$23),(($C181-60-'Main Data Entry'!$D$23)/(60*'Main Data Entry'!$D$22-'Main Data Entry'!$D$23))*(-1)*'Main Data Entry'!$G$21,IF($C181<(60-'Main Data Entry'!$D$23),(($C181-60+'Main Data Entry'!$D$23)/(60*'Main Data Entry'!$D$22-'Main Data Entry'!$D$23))*(-1)*'Main Data Entry'!$G$21,0)) -> 0 | S181: 59.964 | AB181: 43658.03211 | AE181: 59.95895004 | AF181: 453.3500366
A182: T+61s | B182: 43658.03212 | C182: 59.95902634 | D182: 453.3267517 | P182: ='Main Data Entry'!$G$21 -> 0 | Q182: =IF($C182>(60+'Main Data Entry'!$D$23),(($C182-60-'Main Data Entry'!$D$23)/(60*'Main Data Entry'!$D$22-'Main Data Entry'!$D$23))*(-1)*'Main Data Entry'!$G$21,IF($C182<(60-'Main Data Entry'!$D$23),(($C182-60+'Main Data Entry'!$D$23)/(60*'Main Data Entry'!$D$22-'Main Data Entry'!$D$23))*(-1)*'Main Data Entry'!$G$21,0)) -> 0 | S182: 59.964 | AB182: 43658.03212 | AC182: 59.95902634 | AD182: 453.3267517 | AE182: 59.95902634 | AF182: 453.3267517
A183: T+62s | B183: 43658.03213 | C183: 59.95902634 | D183: 453.3267517 | P183: ='Main Data Entry'!$G$21 -> 0 | Q183: =IF($C183>(60+'Main Data Entry'!$D$23),(($C183-60-'Main Data Entry'!$D$23)/(60*'Main Data Entry'!$D$22-'Main Data Entry'!$D$23))*(-1)*'Main Data Entry'!$G$21,IF($C183<(60-'Main Data Entry'!$D$23),(($C183-60+'Main Data Entry'!$D$23)/(60*'Main Data Entry'!$D$22-'Main Data Entry'!$D$23))*(-1)*'Main Data Entry'!$G$21,0)) -> 0 | S183: 59.964 | AB183: 43658.03213 | AE183: 59.95902634 | AF183: 453.3267517
A184: T+63s | B184: 43658.03214 | C184: 59.95910645 | D184: 452.8252563 | P184: ='Main Data Entry'!$G$21 -> 0 | Q184: =IF($C184>(60+'Main Data Entry'!$D$23),(($C184-60-'Main Data Entry'!$D$23)/(60*'Main Data Entry'!$D$22-'Main Data Entry'!$D$23))*(-1)*'Main Data Entry'!$G$21,IF($C184<(60-'Main Data Entry'!$D$23),(($C184-60+'Main Data Entry'!$D$23)/(60*'Main Data Entry'!$D$22-'Main Data Entry'!$D$23))*(-1)*'Main Data Entry'!$G$21,0)) -> 0 | S184: 59.964 | AB184: 43658.03214 | AC184: 59.95910645 | AD184: 452.8252563 | AE184: 59.95910645 | AF184: 452.8252563
A185: T+64s | B185: 43658.03215 | C185: 59.95910645 | D185: 452.8252563 | P185: ='Main Data Entry'!$G$21 -> 0 | Q185: =IF($C185>(60+'Main Data Entry'!$D$23),(($C185-60-'Main Data Entry'!$D$23)/(60*'Main Data Entry'!$D$22-'Main Data Entry'!$D$23))*(-1)*'Main Data Entry'!$G$21,IF($C185<(60-'Main Data Entry'!$D$23),(($C185-60+'Main Data Entry'!$D$23)/(60*'Main Data Entry'!$D$22-'Main Data Entry'!$D$23))*(-1)*'Main Data Entry'!$G$21,0)) -> 0 | S185: 59.964 | AB185: 43658.03215 | AE185: 59.95910645 | AF185: 452.8252563
A186: T+65s | B186: 43658.03216 | C186: 59.95918274 | D186: 452.823761 | P186: ='Main Data Entry'!$G$21 -> 0 | Q186: =IF($C186>(60+'Main Data Entry'!$D$23),(($C186-60-'Main Data Entry'!$D$23)/(60*'Main Data Entry'!$D$22-'Main Data Entry'!$D$23))*(-1)*'Main Data Entry'!$G$21,IF($C186<(60-'Main Data Entry'!$D$23),(($C186-60+'Main Data Entry'!$D$23)/(60*'Main Data Entry'!$D$22-'Main Data Entry'!$D$23))*(-1)*'Main Data Entry'!$G$21,0)) -> 0 | S186: 59.964 | AB186: =AB185+TIME(0,0,1) -> 43658.03216 | AC186: 59.95918274 | AD186: 452.823761 | AE186: 59.95918274 | AF186: 452.823761
A187: T+66s | B187: =B186+TIME(0,0,1) -> 43658.03218 | C187: 59.95918274 | D187: 452.823761 | P187: ='Main Data Entry'!$G$21 -> 0 | Q187: =IF($C187>(60+'Main Data Entry'!$D$23),(($C187-60-'Main Data Entry'!$D$23)/(60*'Main Data Entry'!$D$22-'Main Data Entry'!$D$23))*(-1)*'Main Data Entry'!$G$21,IF($C187<(60-'Main Data Entry'!$D$23),(($C187-60+'Main Data Entry'!$D$23)/(60*'Main Data Entry'!$D$22-'Main Data Entry'!$D$23))*(-1)*'Main Data Entry'!$G$21,0)) -> 0 | S187: 59.964 | AB187: 43658.03218 | AE187: 59.95918274 | AF187: 452.823761
A188: T+67s | B188: 43658.03219 | C188: 59.95837021 | D188: 453.4403992 | P188: ='Main Data Entry'!$G$21 -> 0 | Q188: =IF($C188>(60+'Main Data Entry'!$D$23),(($C188-60-'Main Data Entry'!$D$23)/(60*'Main Data Entry'!$D$22-'Main Data Entry'!$D$23))*(-1)*'Main Data Entry'!$G$21,IF($C188<(60-'Main Data Entry'!$D$23),(($C188-60+'Main Data Entry'!$D$23)/(60*'Main Data Entry'!$D$22-'Main Data Entry'!$D$23))*(-1)*'Main Data Entry'!$G$21,0)) -> 0 | S188: 59.964 | AB188: 43658.03219 | AC188: 59.95837021 | AD188: 453.4403992 | AE188: 59.95837021 | AF188: 453.4403992
A189: T+68s | B189: 43658.0322 | C189: 59.95837021 | D189: 453.4403992 | P189: ='Main Data Entry'!$G$21 -> 0 | Q189: =IF($C189>(60+'Main Data Entry'!$D$23),(($C189-60-'Main Data Entry'!$D$23)/(60*'Main Data Entry'!$D$22-'Main Data Entry'!$D$23))*(-1)*'Main Data Entry'!$G$21,IF($C189<(60-'Main Data Entry'!$D$23),(($C189-60+'Main Data Entry'!$D$23)/(60*'Main Data Entry'!$D$22-'Main Data Entry'!$D$23))*(-1)*'Main Data Entry'!$G$21,0)) -> 0 | S189: 59.964 | AB189: 43658.0322 | AE189: 59.95837021 | AF189: 453.4403992
A190: T+69s | B190: 43658.03221 | C190: 59.95755005 | D190: 453.4422607 | P190: ='Main Data Entry'!$G$21 -> 0 | Q190: =IF($C190>(60+'Main Data Entry'!$D$23),(($C190-60-'Main Data Entry'!$D$23)/(60*'Main Data Entry'!$D$22-'Main Data Entry'!$D$23))*(-1)*'Main Data Entry'!$G$21,IF($C190<(60-'Main Data Entry'!$D$23),(($C190-60+'Main Data Entry'!$D$23)/(60*'Main Data Entry'!$D$22-'Main Data Entry'!$D$23))*(-1)*'Main Data Entry'!$G$21,0)) -> 0 | S190: 59.964 | AB190: 43658.03221 | AC190: 59.95755005 | AD190: 453.4422607 | AE190: 59.95755005 | AF190: 453.4422607
A191: T+70s | B191: 43658.03222 | C191: 59.95755005 | D191: 453.4422607 | P191: ='Main Data Entry'!$G$21 -> 0 | Q191: =IF($C191>(60+'Main Data Entry'!$D$23),(($C191-60-'Main Data Entry'!$D$23)/(60*'Main Data Entry'!$D$22-'Main Data Entry'!$D$23))*(-1)*'Main Data Entry'!$G$21,IF($C191<(60-'Main Data Entry'!$D$23),(($C191-60+'Main Data Entry'!$D$23)/(60*'Main Data Entry'!$D$22-'Main Data Entry'!$D$23))*(-1)*'Main Data Entry'!$G$21,0)) -> 0 | S191: 59.964 | AB191: 43658.03222 | AE191: 59.95755005 | AF191: 453.4422607
A192: T+71s | B192: 43658.03223 | C192: 59.95853424 | D192: 453.0393982 | P192: ='Main Data Entry'!$G$21 -> 0 | Q192: =IF($C192>(60+'Main Data Entry'!$D$23),(($C192-60-'Main Data Entry'!$D$23)/(60*'Main Data Entry'!$D$22-'Main Data Entry'!$D$23))*(-1)*'Main Data Entry'!$G$21,IF($C192<(60-'Main Data Entry'!$D$23),(($C192-60+'Main Data Entry'!$D$23)/(60*'Main Data Entry'!$D$22-'Main Data Entry'!$D$23))*(-1)*'Main Data Entry'!$G$21,0)) -> 0 | S192: 59.964 | AB192: 43658.03223 | AC192: 59.95853424 | AD192: 453.0393982 | AE192: 59.95853424 | AF192: 453.0393982
A193: T+72s | B193: 43658.03225 | C193: 59.95853424 | D193: 453.0393982 | P193: ='Main Data Entry'!$G$21 -> 0 | Q193: =IF($C193>(60+'Main Data Entry'!$D$23),(($C193-60-'Main Data Entry'!$D$23)/(60*'Main Data Entry'!$D$22-'Main Data Entry'!$D$23))*(-1)*'Main Data Entry'!$G$21,IF($C193<(60-'Main Data Entry'!$D$23),(($C193-60+'Main Data Entry'!$D$23)/(60*'Main Data Entry'!$D$22-'Main Data Entry'!$D$23))*(-1)*'Main Data Entry'!$G$21,0)) -> 0 | S193: 59.964 | AB193: 43658.03225 | AE193: 59.95853424 | AF193: 453.0393982
A194: T+73s | B194: 43658.03226 | C194: 59.95951843 | D194: 453.0390015 | P194: ='Main Data Entry'!$G$21 -> 0 | Q194: =IF($C194>(60+'Main Data Entry'!$D$23),(($C194-60-'Main Data Entry'!$D$23)/(60*'Main Data Entry'!$D$22-'Main Data Entry'!$D$23))*(-1)*'Main Data Entry'!$G$21,IF($C194<(60-'Main Data Entry'!$D$23),(($C194-60+'Main Data Entry'!$D$23)/(60*'Main Data Entry'!$D$22-'Main Data Entry'!$D$23))*(-1)*'Main Data Entry'!$G$21,0)) -> 0 | S194: 59.964 | AB194: 43658.03226 | AC194: 59.95951843 | AD194: 453.0390015 | AE194: 59.95951843 | AF194: 453.0390015
A195: T+74s | B195: 43658.03227 | C195: 59.95951843 | D195: 453.0390015 | P195: ='Main Data Entry'!$G$21 -> 0 | Q195: =IF($C195>(60+'Main Data Entry'!$D$23),(($C195-60-'Main Data Entry'!$D$23)/(60*'Main Data Entry'!$D$22-'Main Data Entry'!$D$23))*(-1)*'Main Data Entry'!$G$21,IF($C195<(60-'Main Data Entry'!$D$23),(($C195-60+'Main Data Entry'!$D$23)/(60*'Main Data Entry'!$D$22-'Main Data Entry'!$D$23))*(-1)*'Main Data Entry'!$G$21,0)) -> 0 | S195: 59.964 | AB195: 43658.03227 | AE195: 59.95951843 | AF195: 453.0390015
A196: T+75s | B196: 43658.03228 | C196: 59.95641708 | D196: 453.7147522 | P196: ='Main Data Entry'!$G$21 -> 0 | Q196: =IF($C196>(60+'Main Data Entry'!$D$23),(($C196-60-'Main Data Entry'!$D$23)/(60*'Main Data Entry'!$D$22-'Main Data Entry'!$D$23))*(-1)*'Main Data Entry'!$G$21,IF($C196<(60-'Main Data Entry'!$D$23),(($C196-60+'Main Data Entry'!$D$23)/(60*'Main Data Entry'!$D$22-'Main Data Entry'!$D$23))*(-1)*'Main Data Entry'!$G$21,0)) -> 0 | S196: 59.964 | AB196: 43658.03228 | AC196: 59.95641708 | AD196: 453.7147522 | AE196: 59.95641708 | AF196: 453.7147522
A197: T+76s | B197: 43658.03229 | C197: 59.95641708 | D197: 453.7147522 | P197: ='Main Data Entry'!$G$21 -> 0 | Q197: =IF($C197>(60+'Main Data Entry'!$D$23),(($C197-60-'Main Data Entry'!$D$23)/(60*'Main Data Entry'!$D$22-'Main Data Entry'!$D$23))*(-1)*'Main Data Entry'!$G$21,IF($C197<(60-'Main Data Entry'!$D$23),(($C197-60+'Main Data Entry'!$D$23)/(60*'Main Data Entry'!$D$22-'Main Data Entry'!$D$23))*(-1)*'Main Data Entry'!$G$21,0)) -> 0 | S197: 59.964 | AB197: 43658.03229 | AE197: 59.95641708 | AF197: 453.7147522
A198: T+77s | B198: 43658.0323 | C198: 59.95640182 | D198: 453.7184753 | P198: ='Main Data Entry'!$G$21 -> 0 | Q198: =IF($C198>(60+'Main Data Entry'!$D$23),(($C198-60-'Main Data Entry'!$D$23)/(60*'Main Data Entry'!$D$22-'Main Data Entry'!$D$23))*(-1)*'Main Data Entry'!$G$21,IF($C198<(60-'Main Data Entry'!$D$23),(($C198-60+'Main Data Entry'!$D$23)/(60*'Main Data Entry'!$D$22-'Main Data Entry'!$D$23))*(-1)*'Main Data Entry'!$G$21,0)) -> 0 | S198: 59.964 | AB198: 43658.0323 | AC198: 59.95640182 | AD198: 453.7184753 | AE198: 59.95640182 | AF198: 453.7184753
A199: T+78s | B199: 43658.03231 | C199: 59.95640182 | D199: 453.7184753 | P199: ='Main Data Entry'!$G$21 -> 0 | Q199: =IF($C199>(60+'Main Data Entry'!$D$23),(($C199-60-'Main Data Entry'!$D$23)/(60*'Main Data Entry'!$D$22-'Main Data Entry'!$D$23))*(-1)*'Main Data Entry'!$G$21,IF($C199<(60-'Main Data Entry'!$D$23),(($C199-60+'Main Data Entry'!$D$23)/(60*'Main Data Entry'!$D$22-'Main Data Entry'!$D$23))*(-1)*'Main Data Entry'!$G$21,0)) -> 0 | S199: 59.964 | AB199: 43658.03231 | AE199: 59.95640182 | AF199: 453.7184753
A200: T+79s | B200: 43658.03233 | C200: 59.95926666 | D200: 453.1589661 | P200: ='Main Data Entry'!$G$21 -> 0 | Q200: =IF($C200>(60+'Main Data Entry'!$D$23),(($C200-60-'Main Data Entry'!$D$23)/(60*'Main Data Entry'!$D$22-'Main Data Entry'!$D$23))*(-1)*'Main Data Entry'!$G$21,IF($C200<(60-'Main Data Entry'!$D$23),(($C200-60+'Main Data Entry'!$D$23)/(60*'Main Data Entry'!$D$22-'Main Data Entry'!$D$23))*(-1)*'Main Data Entry'!$G$21,0)) -> 0 | S200: 59.964 | AB200: 43658.03233 | AC200: 59.95926666 | AD200: 453.1589661 | AE200: 59.95926666 | AF200: 453.1589661
... 79 more rows

Sheet Chart
A1: Alignment Chart for Historian Data | M1: =CONCATENATE('Main Data Entry'!D7&" "&'Main Data Entry'!D9) -> 
A2: -Users may use this chart to align their frequency and MW data to the t(0) of the event provided by NERC staff. | M2: ='Main Data Entry'!D27 -> 2019-07-12T00:45:14
A3: -Chart will not be available for manually entered data.
F34: OFFSET (s): | H34: 0
